Workbook

Sheet Баланс энергии
AF1: тыс. кВт.ч.
A3: Баланс электрической энергии по сетям ВН, СН1, СН2, и НН | H3: МУП "Горэлектросеть" г. Муром
A5: № п.п. | B5: Показатели | C5: Принято регулирующим органом на 2020 год | H5: Факт за 2020 год | M5: Принято регулирующим органом на 2021 год | R5: По данным организации на 2022 год | W5: По данным организации на 1 полугодие 2022 года | AB5: По данным организации на 2 полугодие 2022 года | AG5: По данным экспертов на 2022 год | AL5: По данным экспертов на 1 полугодие 2022 года | AQ5: По данным экспертов на 2 полугодие 2022 года
C6: Всего | D6: ВН | E6: СН1 | F6: СН2 | G6: НН | H6: Всего | I6: ВН | J6: СН1 | K6: СН2 | L6: НН | M6: Всего | N6: ВН | O6: СН1 | P6: СН2 | Q6: НН | R6: Всего | S6: ВН | T6: СН1 | U6: СН2 | V6: НН | W6: Всего | X6: ВН | Y6: СН1 | Z6: СН2 | AA6: НН | AB6: Всего | AC6: ВН | AD6: СН1 | AE6: СН2 | AF6: НН | AG6: Всего | AH6: ВН | AI6: СН1 | AJ6: СН2 | AK6: НН | AL6: Всего | AM6: ВН | AN6: СН1 | AO6: СН2 | AP6: НН | AQ6: Всего | AR6: ВН | AS6: СН1 | AT6: СН2 | AU6: НН
A7: 1 | B7: 2 | C7: 3 | D7: 4 | E7: 5 | F7: 6 | G7: 7 | H7: 18 | I7: 19 | J7: 20 | K7: 21 | L7: 22 | M7: 33 | N7: 34 | O7: 35 | P7: 36 | Q7: 37 | R7: 48 | S7: 49 | T7: 50 | U7: 51 | V7: 52 | W7: 53 | X7: 54 | Y7: 55 | Z7: 56 | AA7: 57 | AB7: 58 | AC7: 59 | AD7: 60 | AE7: 61 | AF7: 62 | AG7: 63 | AH7: 64 | AI7: 65 | AJ7: 66 | AK7: 67 | AL7: 53 | AM7: 54 | AN7: 55 | AO7: 56 | AP7: 57 | AQ7: 58 | AR7: 59 | AS7: 60 | AT7: 61 | AU7: 62
A8: 1. | B8: Поступление эл.энергии в сеть , ВСЕГО | C8: =C18+C20+C21 -> 183841.1568 | D8: =D14+D15+D16+D17 -> 181665.5276 | E8: =E9+E14+E15+E16+E17 -> 2175.629178 | F8: =F9+F14+F15+F16+F17 -> 183841.1568 | G8: =G9+G14+G15+G16+G17 -> 105192.821 | H8: =H18+H20+H21 -> 177948.438 | I8: =I14+I15+I16+I17 -> 174717.77 | J8: =J9+J14+J15+J16+J17 -> 2993.356 | K8: =K9+K14+K15+K16+K17 -> 177948.438 | L8: =L9+L14+L15+L16+L17 -> 101438.0372 | M8: =M18+M20+M21 -> 179315.8865 | N8: =N14+N15+N16+N17 -> 176517.8045 | O8: =O9+O14+O15+O16+O17 -> 2669.182413 | P8: =P9+P14+P15+P16+P17 -> 179315.8865 | Q8: =Q9+Q14+Q15+Q16+Q17 -> 101856.8472 | R8: =R18+R20+R21 -> 174282.335 | S8: =S14+S15+S16+S17 -> 171563.225 | T8: =T9+T14+T15+T16+T17 -> 2593.85 | U8: =U9+U14+U15+U16+U17 -> 174282.335 | V8: =V9+V14+V15+V16+V17 -> 99294.17599 | W8: =W18+W20+W21 -> 87799.67 | X8: =X14+X15+X16+X17 -> 86437.32 | Y8: =Y9+Y14+Y15+Y16+Y17 -> 1299.59 | Z8: =Z9+Z14+Z15+Z16+Z17 -> 87799.67 | AA8: =AA9+AA14+AA15+AA16+AA17 -> 50583.48414 | AB8: =AB18+AB20+AB21 -> 86482.665 | AC8: =AC14+AC15+AC16+AC17 -> 85125.905 | AD8: =AD9+AD14+AD15+AD16+AD17 -> 1294.26 | AE8: =AE9+AE14+AE15+AE16+AE17 -> 86482.665 | AF8: =AF9+AF14+AF15+AF16+AF17 -> 49020.49116 | AG8: =AG18+AG20+AG21 -> 177085.2 | AH8: =AH14+AH15+AH16+AH17 -> 173870.2042 | AI8: =AI9+AI14+AI15+AI16+AI17 -> 2978.83506 | AJ8: =AJ9+AJ14+AJ15+AJ16+AJ17 -> 177085.2 | AK8: =AK9+AK14+AK15+AK16+AK17 -> 100659.5289 | AL8: =AL18+AL20+AL21 -> 88684.47685 | AM8: =AM14+AM15+AM16+AM17 -> 87074.40314 | AN8: =AN9+AN14+AN15+AN16+AN17 -> 1491.804108 | AO8: =AO9+AO14+AO15+AO16+AO17 -> 88684.47685 | AP8: =AP9+AP14+AP15+AP16+AP17 -> 50039.22704 | AQ8: =AQ18+AQ20+AQ21 -> 88400.72315 | AR8: =AR14+AR15+AR16+AR17 -> 86795.80102 | AS8: =AS9+AS14+AS15+AS16+AS17 -> 1487.030951 | AT8: =AT9+AT14+AT15+AT16+AT17 -> 88400.72315 | AU8: =AU9+AU14+AU15+AU16+AU17 -> 50620.30185
A9: 1.1. | B9: из смежной сети, всего | C9: х | D9: х | E9: =E11 -> 0 | F9: =F11+F12 -> 183841.1568 | G9: =G11+G12+G13 -> 105192.821 | H9: х | I9: х | J9: =J11 -> 0 | K9: =K11+K12 -> 177711.126 | L9: =L11+L12+L13 -> 101438.0372 | M9: х | N9: х | O9: =O11 -> 0 | P9: =P11+P12 -> 179186.9869 | Q9: =Q11+Q12+Q13 -> 101856.8472 | R9: х | S9: х | T9: =T11 -> 0 | U9: =U11+U12 -> 174157.075 | V9: =V11+V12+V13 -> 99294.17599 | W9: х | X9: х | Y9: =Y11 -> 0 | Z9: =Z11+Z12 -> 87736.91 | AA9: =AA11+AA12+AA13 -> 50583.48414 | AB9: х | AC9: х | AD9: =AD11 -> 0 | AE9: =AE11+AE12 -> 86420.165 | AF9: =AF11+AF12+AF13 -> 49020.49116 | AG9: х | AH9: х | AI9: =AI11 -> 0 | AJ9: =AJ11+AJ12 -> 176849.0392 | AK9: =AK11+AK12+AK13 -> 100659.5289 | AL9: х | AM9: х | AN9: =AN11 -> 0 | AO9: =AO11+AO12 -> 88566.20725 | AP9: =AP11+AP12+AP13 -> 50039.22704 | AQ9: х | AR9: х | AS9: =AS11 -> 0 | AT9: =AT11+AT12 -> 88282.83197 | AU9: =AU11+AU12+AU13 -> 50620.30185
B10: в том числе из сети | C10: х | D10: х | E10: х | F10: х | G10: х | H10: х | I10: х | J10: х | K10: х | L10: х | M10: х | N10: х | O10: х | P10: х | Q10: х | R10: х | S10: х | T10: х | U10: х | V10: х | W10: х | X10: х | Y10: х | Z10: х | AA10: х | AB10: х | AC10: х | AD10: х | AE10: х | AF10: х | AG10: х | AH10: х | AI10: х | AJ10: х | AK10: х | AL10: х | AM10: х | AN10: х | AO10: х | AP10: х | AQ10: х | AR10: х | AS10: х | AT10: х | AU10: х
A11: 1.1.1. | B11: ВН | C11: х | D11: х | F11: =D8-D18-D20-D21-E11-G11 -> 181665.5276 | H11: х | I11: х | K11: =I8-I18-I20-I21-J11-L11 -> 174717.77 | M11: х | N11: х | P11: =N8-N18-N20-N21-O11-Q11 -> 176517.8045 | R11: х | S11: х | U11: =S8-S18-S20-S21-T11-V11 -> 171563.225 | W11: х | X11: х | Z11: =X8-X18-X20-X21-Y11-AA11 -> 86437.32 | AB11: х | AC11: х | AE11: =AC8-AC18-AC20-AC21-AD11-AF11 -> 85125.905 | AG11: х | AH11: х | AJ11: =AH8-AH18-AH20-AH21-AI11-AK11 -> 173870.2042 | AL11: х | AM11: х | AO11: =AM8-AM18-AM20-AM21-AN11-AP11 -> 87074.40314 | AQ11: х | AR11: х | AT11: =AR8-AR18-AR20-AR21-AS11-AU11 -> 86795.80102
A12: 1.1.2. | B12: СН1 | C12: х | D12: х | E12: х | F12: =E8-E18-E20-E21-G12 -> 2175.629178 | H12: х | I12: х | J12: х | K12: =J8-J18-J20-J21-L12 -> 2993.356 | M12: х | N12: х | O12: х | P12: =O8-O18-O20-O21-Q12 -> 2669.182413 | R12: х | S12: х | T12: х | U12: =T8-T18-T20-T21-V12 -> 2593.85 | W12: х | X12: х | Y12: х | Z12: =Y8-Y18-Y20-Y21-AA12 -> 1299.59 | AB12: х | AC12: х | AD12: х | AE12: =AD8-AD18-AD20-AD21-AF12 -> 1294.26 | AG12: х | AH12: х | AI12: х | AJ12: =AI8-AI18-AI20-AI21-AK12 -> 2978.83506 | AL12: х | AM12: х | AN12: х | AO12: =AN8-AN18-AN20-AN21-AP12 -> 1491.804108 | AQ12: х | AR12: х | AS12: х | AT12: =AS8-AS18-AS20-AS21-AU12 -> 1487.030951
A13: 1.1.3. | B13: СН2 | C13: х | D13: х | E13: х | F13: х | G13: =F8-F18-F20-F21 -> 105192.821 | H13: х | I13: х | J13: х | K13: х | L13: =K8-K18-K20-K21 -> 101438.0372 | M13: х | N13: х | O13: х | P13: х | Q13: =P8-P18-P20-P21 -> 101856.8472 | R13: х | S13: х | T13: х | U13: х | V13: =U8-U18-U20-U21 -> 99294.17599 | W13: х | X13: х | Y13: х | Z13: х | AA13: =Z8-Z18-Z20-Z21 -> 50583.48414 | AB13: х | AC13: х | AD13: х | AE13: х | AF13: =AE8-AE18-AE20-AE21 -> 49020.49116 | AG13: х | AH13: х | AI13: х | AJ13: х | AK13: =AJ8-AJ18-AJ20-AJ21 -> 100659.5289 | AL13: х | AM13: х | AN13: х | AO13: х | AP13: =AO8-AO18-AO20-AO21 -> 50039.22704 | AQ13: х | AR13: х | AS13: х | AT13: х | AU13: =AT8-AT18-AT20-AT21 -> 50620.30185
A14: 1.2. | B14: от электростанций | C14: =SUM(D14:G14) -> 0 | H14: =SUM(I14:L14) -> 0 | M14: =SUM(N14:Q14) -> 0 | R14: =SUM(S14:V14) -> 0 | W14: =SUM(X14:AA14) -> 0 | AB14: =SUM(AC14:AF14) -> 0 | AG14: =SUM(AH14:AK14) -> 0 | AH14: 0 | AI14: 0 | AJ14: 0 | AK14: 0 | AL14: =SUM(AM14:AP14) -> 0 | AM14: 0 | AN14: 0 | AO14: 0 | AP14: 0 | AQ14: =SUM(AR14:AU14) -> 0 | AR14: 0 | AS14: 0 | AT14: 0 | AU14: 0
A15: 1.3. | B15: от ОАО "ФСК ЕЭС" | C15: =SUM(D15:G15) -> 0 | H15: =SUM(I15:L15) -> 0 | M15: =SUM(N15:Q15) -> 0 | R15: =SUM(S15:V15) -> 0 | W15: =SUM(X15:AA15) -> 0 | AB15: =SUM(AC15:AF15) -> 0 | AG15: =SUM(AH15:AK15) -> 0 | AH15: 0 | AI15: 0 | AJ15: 0 | AK15: 0 | AL15: =SUM(AM15:AP15) -> 0 | AM15: 0 | AN15: 0 | AO15: 0 | AP15: 0 | AQ15: =SUM(AR15:AU15) -> 0 | AR15: 0 | AS15: 0 | AT15: 0 | AU15: 0
A16: 1.4. | B16: от филиала "Владимирэнерго" ОАО "МРСК Центра и Приволжья" | C16: =SUM(D16:G16) -> 183841.1568 | D16: 181665.5276 | E16: 2175.629178 | H16: =SUM(I16:L16) -> 177948.438 | I16: 174717.77 | J16: 2993.356 | K16: 237.312 | M16: =SUM(N16:Q16) -> 179315.8865 | N16: 176517.8045 | O16: 2669.182413 | P16: 128.8995538 | R16: =SUM(S16:V16) -> 174282.335 | S16: =X16+AC16 -> 171563.225 | T16: =Y16+AD16 -> 2593.85 | U16: 125.26 | W16: =SUM(X16:AA16) -> 87799.67 | X16: 86437.32 | Y16: 1299.59 | Z16: 62.76 | AB16: =SUM(AC16:AF16) -> 86482.665 | AC16: 85125.905 | AD16: 1294.26 | AE16: 62.5 | AG16: =SUM(AH16:AK16) -> 177002.4633 | AH16: 173870.2042 | AI16: 2978.83506 | AJ16: 153.4241029 | AK16: 0 | AL16: =SUM(AM16:AP16) -> 88643.04222 | AM16: 87074.40314 | AN16: 1491.804108 | AO16: 76.83497151 | AP16: 0 | AQ16: =SUM(AR16:AU16) -> 88359.4211 | AR16: 86795.80102 | AS16: 1487.030951 | AT16: 76.58913134 | AU16: 0
A17: 1.5. | B17: от других сетевых организаций | C17: =SUM(D17:G17) -> 0 | H17: =SUM(I17:L17) -> 0 | M17: =SUM(N17:Q17) -> 0 | R17: =SUM(S17:V17) -> 0 | W17: =SUM(X17:AA17) -> 0 | AB17: =SUM(AC17:AF17) -> 0 | AG17: =SUM(AH17:AK17) -> 82.73668313 | AH17: 0 | AI17: 0 | AJ17: 82.73668313 | AK17: 0 | AL17: =SUM(AM17:AP17) -> 41.43462841 | AM17: 0 | AN17: 0 | AO17: 41.43462841 | AP17: 0 | AQ17: =SUM(AR17:AU17) -> 41.30205472 | AR17: 0 | AS17: 0 | AT17: 41.30205472 | AU17: 0
A18: 2. | B18: Потери электроэнергии в сети | C18: =SUM(D18:G18) -> 13475.6 | D18: =D8*D19/100 -> 0 | E18: =E8*E19/100 -> 0 | F18: =F8*F19/100 -> 7206.573346 | G18: =G8*G19/100 -> 6269.026654 | H18: =SUM(I18:L18) -> 13843.50497 | I18: =I8*I19/100 -> 0 | J18: =J8*J19/100 -> 0 | K18: =K8*K19/100 -> 7022.64275 | L18: =L8*L19/100 -> 6820.862215 | M18: =SUM(N18:Q18) -> 13143.9 | N18: =N8*N19/100 -> 0 | O18: =O8*O19/100 -> 0 | P18: =P8*P19/100 -> 7029.18275 | Q18: =Q8*Q19/100 -> 6114.71725 | R18: =SUM(S18:V18) -> 12774.99633 | S18: =S8*S19/100 -> 0 | T18: =T8*T19/100 -> 0 | U18: =U8*U19/100 -> 6520.059006 | V18: =V8*V19/100 -> 6254.937323 | W18: =SUM(X18:AA18) -> 5617.386696 | X18: =X8*X19/100 -> 0 | Y18: =Y8*Y19/100 -> 0 | Z18: =Z8*Z19/100 -> 2820.625859 | AA18: =AA8*AA19/100 -> 2796.760838 | AB18: =SUM(AC18:AF18) -> 7157.615248 | AC18: =AC8*AC19/100 -> 0 | AD18: =AD8*AD19/100 -> 0 | AE18: =AE8*AE19/100 -> 3564.633838 | AF18: =AF8*AF19/100 -> 3592.98141 | AG18: =SUM(AH18:AK18) -> 12980.3 | AH18: =AH8*AH19/100 -> 0 | AI18: =AI8*AI19/100 -> 0 | AJ18: =AJ8*AJ19/100 -> 6941.73984 | AK18: =AK8*AK19/100 -> 6038.56016 | AL18: =SUM(AM18:AP18) -> 5623.9 | AM18: =AM8*AM19/100 -> 0 | AN18: =AN8*AN19/100 -> 0 | AO18: =AO8*AO19/100 -> 3476.431492 | AP18: =AP8*AP19/100 -> 2147.468508 | AQ18: =SUM(AR18:AU18) -> 7356.4 | AR18: =AR8*AR19/100 -> 0 | AS18: =AS8*AS19/100 -> 0 | AT18: =AT8*AT19/100 -> 3465.308348 | AU18: =AU8*AU19/100 -> 3891.091652
A19: 2.1. | B19: то же в % (п.2./п.1.) | C19: =IF(C8=0,0,C18/C8*100) -> 7.330023502 | F19: 3.92 | G19: 5.959557501 | H19: =IF(H8=0,0,H18/H8*100) -> 7.779503502 | K19: 3.9464481 | L19: 6.7241662 | M19: =IF(M8=0,0,M18/M8*100) -> 7.330025386 | P19: 3.92 | Q19: 6.003246139 | R19: =IF(R8=0,0,R18/R8*100) -> 7.330058051 | U19: 3.74109 | V19: 6.2994 | W19: =IF(W8=0,0,W18/W8*100) -> 6.397958781 | Z19: 3.21257 | AA19: 5.528999999 | AB19: =IF(AB8=0,0,AB18/AB8*100) -> 8.276358329 | AE19: 4.12179 | AF19: 7.32955 | AG19: =IF(AG8=0,0,AG18/AG8*100) -> 7.329974498 | AH19: 0 | AI19: 0 | AJ19: 3.92 | AK19: 5.998995055 | AL19: =IF(AL8=0,0,AL18/AL8*100) -> 6.341470571 | AM19: 0 | AN19: 0 | AO19: 3.92 | AP19: 4.291570104 | AQ19: =IF(AQ8=0,0,AQ18/AQ8*100) -> 8.321651382 | AR19: 0 | AS19: 0 | AT19: 3.92 | AU19: 7.686820328
A20: 3. | B20: Расход электроэнергии на производственные и хознужды | C20: =SUM(D20:G20) -> 0 | H20: =SUM(I20:L20) -> 0 | M20: =SUM(N20:Q20) -> 0 | R20: =SUM(S20:V20) -> 0 | W20: =SUM(X20:AA20) -> 0 | AB20: =SUM(AC20:AF20) -> 0 | AG20: =SUM(AH20:AK20) -> 0 | AL20: =SUM(AM20:AP20) -> 0 | AQ20: =SUM(AR20:AU20) -> 0
A21: 4. | B21: Полезный отпуск из сети | C21: =SUM(D21:G21) -> 170365.5568 | D21: =D22+D23+D24 -> 0 | E21: =E22+E23+E24 -> 0 | F21: =F22+F23+F24 -> 71441.76246 | G21: =G8-G18-G20 -> 98923.79433 | H21: =SUM(I21:L21) -> 164104.933 | I21: =I22+I23+I24 -> 0 | J21: =J22+J23+J24 -> 0 | K21: =K22+K23+K24 -> 69487.758 | L21: =L8-L18-L20 -> 94617.17503 | M21: =SUM(N21:Q21) -> 166171.9865 | N21: =N22+N23+N24 -> 0 | O21: =O22+O23+O24 -> 0 | P21: =P22+P23+P24 -> 70429.85649 | Q21: =Q8-Q18-Q20 -> 95742.12999 | R21: =SUM(S21:V21) -> 161507.3387 | S21: =S22+S23+S24 -> 0 | T21: =T22+T23+T24 -> 0 | U21: =U22+U23+U24 -> 68468.1 | V21: =V8-V18-V20 -> 93039.23867 | W21: =SUM(X21:AA21) -> 82182.2833 | X21: =X22+X23+X24 -> 0 | Y21: =Y22+Y23+Y24 -> 0 | Z21: =Z22+Z23+Z24 -> 34395.56 | AA21: =AA8-AA18-AA20 -> 47786.7233 | AB21: =SUM(AC21:AF21) -> 79325.04975 | AC21: =AC22+AC23+AC24 -> 0 | AD21: =AD22+AD23+AD24 -> 0 | AE21: =AE22+AE23+AE24 -> 33897.54 | AF21: =AF8-AF18-AF20 -> 45427.50975 | AG21: =SUM(AH21:AK21) -> 164104.9 | AH21: =AH22+AH23+AH24 -> 0 | AI21: =AI22+AI23+AI24 -> 0 | AJ21: =AJ22+AJ23+AJ24 -> 69483.93128 | AK21: =AK8-AK18-AK20 -> 94620.96872 | AL21: =SUM(AM21:AP21) -> 83060.57685 | AM21: =AM22+AM23+AM24 -> 0 | AN21: =AN22+AN23+AN24 -> 0 | AO21: =AO22+AO23+AO24 -> 35168.81832 | AP21: =AP8-AP18-AP20 -> 47891.75853 | AQ21: =SUM(AR21:AU21) -> 81044.32315 | AR21: =AR22+AR23+AR24 -> 0 | AS21: =AS22+AS23+AS24 -> 0 | AT21: =AT22+AT23+AT24 -> 34315.11296 | AU21: =AU8-AU18-AU20 -> 46729.2102
A22: 4.1. | B22: потребителям, присоединенным к сети | C22: =SUM(D22:G22) -> 170365.5568 | F22: 71441.76246 | G22: 98923.79433 | H22: =SUM(I22:L22) -> 164104.933 | K22: 69487.758 | L22: 94617.175 | M22: =SUM(N22:Q22) -> 159211.1144 | P22: 64330.90011 | Q22: 94880.21428 | R22: =SUM(S22:V22) -> 161507.34 | U22: 68468.1 | V22: 93039.24 | W22: =SUM(X22:AA22) -> 82182.28 | Z22: 34395.56 | AA22: 47786.72 | AB22: =SUM(AC22:AF22) -> 79325.05 | AE22: 33897.54 | AF22: 45427.51 | AG22: =SUM(AH22:AK22) -> 161796.1245 | AH22: 0 | AI22: 0 | AJ22: 67175.15578 | AK22: 94620.96872 | AL22: =SUM(AM22:AP22) -> 81892.00586 | AM22: 0 | AN22: 0 | AO22: 34000.24733 | AP22: 47891.75853 | AQ22: =SUM(AR22:AU22) -> 79904.11864 | AR22: 0 | AS22: 0 | AT22: 33174.90844 | AU22: 46729.2102
A23: 4.2. | B23: переток в филиал "Владимирэнерго" ОАО "МРСК Центра и Приволжья" | C23: =SUM(D23:G23) -> 0 | H23: =SUM(I23:L23) -> 0 | M23: =SUM(N23:Q23) -> 0 | P23: 0 | Q23: 0 | R23: =SUM(S23:V23) -> 0 | W23: =SUM(X23:AA23) -> 0 | AB23: =SUM(AC23:AF23) -> 0 | AG23: =SUM(AH23:AK23) -> 0 | AH23: 0 | AI23: 0 | AJ23: 0 | AK23: 0 | AL23: =SUM(AM23:AP23) -> 0 | AM23: 0 | AN23: 0 | AO23: 0 | AP23: 0 | AQ23: =SUM(AR23:AU23) -> 0 | AR23: 0 | AS23: 0 | AT23: 0 | AU23: 0
A24: 4.3. | B24: переток в другие сетевые организации | C24: =SUM(D24:G24) -> 0 | H24: =SUM(I24:L24) -> 0 | M24: =SUM(N24:Q24) -> 6960.872097 | P24: 6098.956379 | Q24: 861.915718 | R24: =SUM(S24:V24) -> 0 | W24: =SUM(X24:AA24) -> 0 | AB24: =SUM(AC24:AF24) -> 0 | AG24: =SUM(AH24:AK24) -> 2308.775498 | AH24: 0 | AI24: 0 | AJ24: 2308.775498 | AK24: 0 | AL24: =SUM(AM24:AP24) -> 1168.570985 | AM24: 0 | AN24: 0 | AO24: 1168.570985 | AP24: 0 | AQ24: =SUM(AR24:AU24) -> 1140.204513 | AR24: 0 | AS24: 0 | AT24: 1140.204513 | AU24: 0
B25: Проверка | D25: =D8-D18-D20-D22-D23-D24-E11-F11-G11 -> 0 | E25: =E8-E18-E20-E22-E23-E24-F12-G12 -> 0 | F25: =F8-F18-F20-F22-F23-F24-G13 -> 0 | G25: =G8-G18-G20-G22-G23-G24 -> 0 | I25: =I8-I18-I20-I22-I23-I24-J11-K11-L11 -> 0 | J25: =J8-J18-J20-J22-J23-J24-K12-L12 -> 0 | K25: =K8-K18-K20-K22-K23-K24-L13 -> 0 | L25: =L8-L18-L20-L22-L23-L24 -> 3.489035589e-05 | N25: =N8-N18-N20-N22-N23-N24-O11-P11-Q11 -> 0 | O25: =O8-O18-O20-O22-O23-O24-P12-Q12 -> 0 | P25: =P8-P18-P20-P22-P23-P24-Q13 -> 0 | Q25: =Q8-Q18-Q20-Q22-Q23-Q24 -> 0 | S25: =S8-S18-S20-S22-S23-S24-T11-U11-V11 -> 0 | T25: =T8-T18-T20-T22-T23-T24-U12-V12 -> 0 | U25: =U8-U18-U20-U22-U23-U24-V13 -> 0 | V25: =V8-V18-V20-V22-V23-V24 -> -0.001328989092 | X25: =X8-X18-X20-X22-X23-X24-Y11-Z11-AA11 -> 0 | Y25: =Y8-Y18-Y20-Y22-Y23-Y24-Z12-AA12 -> 0 | Z25: =Z8-Z18-Z20-Z22-Z23-Z24-AA13 -> 0 | AA25: =AA8-AA18-AA20-AA22-AA23-AA24 -> 0.003303804355 | AC25: =AC8-AC18-AC20-AC22-AC23-AC24-AD11-AE11-AF11 -> 0 | AD25: =AD8-AD18-AD20-AD22-AD23-AD24-AE12-AF12 -> 0 | AE25: =AE8-AE18-AE20-AE22-AE23-AE24-AF13 -> 0 | AF25: =AF8-AF18-AF20-AF22-AF23-AF24 -> -0.0002476896116 | AH25: =AH8-AH18-AH20-AH22-AH23-AH24-AI11-AJ11-AK11 -> 0 | AI25: =AI8-AI18-AI20-AI22-AI23-AI24-AJ12-AK12 -> 0 | AJ25: =AJ8-AJ18-AJ20-AJ22-AJ23-AJ24-AK13 -> 0 | AK25: =AK8-AK18-AK20-AK22-AK23-AK24 -> -1.455191523e-11 | AM25: =AM8-AM18-AM20-AM22-AM23-AM24-AN11-AO11-AP11 -> 0 | AN25: =AN8-AN18-AN20-AN22-AN23-AN24-AO12-AP12 -> 0 | AO25: =AO8-AO18-AO20-AO22-AO23-AO24-AP13 -> 0 | AP25: =AP8-AP18-AP20-AP22-AP23-AP24 -> 0 | AR25: =AR8-AR18-AR20-AR22-AR23-AR24-AS11-AT11-AU11 -> 0 | AS25: =AS8-AS18-AS20-AS22-AS23-AS24-AT12-AU12 -> 0 | AT25: =AT8-AT18-AT20-AT22-AT23-AT24-AU13 -> 0 | AU25: =AU8-AU18-AU20-AU22-AU23-AU24 -> 0
H26: 164104.933
B27: Руководитель организации | D27: А.Ю. Александрук

Sheet Баланс мощности
B2: Электрическая мощность по диапазонам напряжения
B3: МУП "Горэлектосеть" г.Муром
G5: МВт
A6: № п.п. | B6: Показатели | C6: По данным организации на 2022 год | H6: По данным экспертов на 2022 год
C7: Всего | D7: ВН | E7: СН1 | F7: СН2 | G7: НН | H7: Всего | I7: ВН | J7: СН1 | K7: СН2 | L7: НН
A8: 1 | B8: 2 | C8: 3 | D8: 4 | E8: 5 | F8: 6 | G8: 7 | H8: 8 | I8: 9 | J8: 10 | K8: 11 | L8: 12
A9: 1. | B9: Поступление мощности в сеть , ВСЕГО | C9: =C19+C21+C22 -> 29.1252 | D9: =D15+D16+D17+D18 -> 28.6707244 | E9: =E10+E15+E16+E17+E18 -> 0.4335392 | F9: =F10+F15+F16+F17+F18 -> 29.1252 | G9: =G10+G15+G16+G17+G18 -> 16.62097906 | H9: =H19+H21+H22 -> 0 | I9: =I15+I16+I17+I18 -> 0 | J9: =J10+J15+J16+J17+J18 -> 0 | K9: =K10+K15+K16+K17+K18 -> 0 | L9: =L10+L15+L16+L17+L18 -> 0
A10: 1.1. | B10: из смежной сети, всего | C10: х | D10: х | E10: =E12 -> 0 | F10: =F12+F13 -> 29.1042636 | G10: =G12+G13+G14 -> 16.62097906 | H10: х | I10: х | J10: =J12 -> 0 | K10: =K12+K13 -> 0 | L10: =L12+L13+L14 -> 0
B11: в том числе из сети | C11: х | D11: х | E11: х | F11: х | G11: х | H11: х | I11: х | J11: х | K11: х | L11: х
A12: 1.1.1. | B12: ВН | C12: х | D12: х | F12: =D9-D19-D21-D22-G12-E12 -> 28.6707244 | H12: х | I12: х | K12: =I9-I19-I21-I22-L12-J12 -> 0
A13: 1.1.2. | B13: СН1 | C13: х | D13: х | E13: х | F13: =E9-E19-E21-E22-G13 -> 0.4335392 | H13: х | I13: х | J13: х | K13: =J9-J19-J21-J22-L13 -> 0
A14: 1.1.3. | B14: СН2 | C14: х | D14: х | E14: х | F14: х | G14: =F9-F19-F21-F22 -> 16.62097906 | H14: х | I14: х | J14: х | K14: х | L14: =K9-K19-K21-K22 -> 0
A15: 1.2. | B15: от электростанций | C15: =SUM(D15:G15) -> 0 | H15: =SUM(I15:L15) -> 0
A16: 1.3. | B16: от ОАО "ФСК ЕЭС" | C16: =SUM(D16:G16) -> 0 | H16: =SUM(I16:L16) -> 0
A17: 1.4. | B17: от филиала "Владимирэнерго" ОАО "МРСК Центра и Приволжья" | C17: =SUM(D17:G17) -> 29.1252 | D17: 28.6707244 | E17: 0.4335392 | F17: 0.0209364 | H17: =SUM(I17:L17) -> 0
A18: 1.5. | B18: от других сетевых организаций | C18: =SUM(D18:G18) -> 0 | H18: =SUM(I18:L18) -> 0
A19: 2. | B19: Потери мощности в сети | C19: =SUM(D19:G19) -> 2.16111125 | D19: =D9*D20/100 -> 0 | E19: =E9*E20/100 -> 0 | F19: =F9*F20/100 -> 1.089599945 | G19: =G9*G20/100 -> 1.071511305 | H19: =SUM(I19:L19) -> 0 | I19: =I9*I20/100 -> 0 | J19: =J9*J20/100 -> 0 | K19: =K9*K20/100 -> 0 | L19: =L9*L20/100 -> 0
A20: 2.1. | B20: то же в % (п.2./п.1.) | C20: =IF(C9=0,0,C19/C9*100) -> 7.42007351 | D20: ='Баланс энергии'!S19 -> 0 | E20: ='Баланс энергии'!T19 -> 0 | F20: ='Баланс энергии'!U19 -> 3.74109 | G20: 6.44674 | H20: =IF(H9=0,0,H19/H9*100) -> 0 | I20: ='Баланс энергии'!AH19 -> 0 | J20: ='Баланс энергии'!AI19 -> 0 | K20: ='Баланс энергии'!AJ19 -> 3.92
A21: 3. | B21: Расход электроэнергии на производственные и хознужды | C21: =SUM(D21:G21) -> 0 | H21: =SUM(I21:L21) -> 0
A22: 4. | B22: Полезный отпуск из сети | C22: =SUM(D22:G22) -> 26.96408875 | D22: =D23+D24+D25 -> 0 | E22: =E23+E24+E25 -> 0 | F22: =F23+F24+F25 -> 11.414621 | G22: =G9-G19-G21 -> 15.54946775 | H22: =SUM(I22:L22) -> 0 | I22: =I23+I24+I25 -> 0 | J22: =J23+J24+J25 -> 0 | K22: =K23+K24+K25 -> 0 | L22: =L9-L19-L21 -> 0
A23: 4.1. | B23: потребителям, присоединенным к сети | C23: =SUM(D23:G23) -> 26.964121 | F23: 11.414621 | G23: 15.5495 | H23: =SUM(I23:L23) -> 0
A24: 4.2. | B24: переток в филиал "Владимирэнерго" ОАО "МРСК Центра и Приволжья" | C24: =SUM(D24:G24) -> 0 | H24: =SUM(I24:L24) -> 0
A25: 4.3. | B25: переток в другие сетевые организации | C25: =SUM(D25:G25) -> 0 | H25: =SUM(I25:L25) -> 0
B26: Проверка | D26: =D9-D19-D21-D23-D24-D25-E12-F12-G12 -> 0 | E26: =E9-E19-E21-E23-E24-E25-F13-G13 -> 0 | F26: =F9-F19-F21-F23-F24-F25-G14 -> 0 | G26: =G9-G19-G21-G23-G24-G25 -> -3.224983094e-05 | I26: =I9-I19-I21-I23-I24-I25-J12-K12-L12 -> 0 | J26: =J9-J19-J21-J23-J24-J25-K13-L13 -> 0 | K26: =K9-K19-K21-K23-K24-K25-L14 -> 0 | L26: =L9-L19-L21-L23-L24-L25 -> 0
B28: Руководитель организации | D28: А.Ю. Александрук

Sheet Аренда имущества (hidden)
A2: Расходы по аренде имущества
A3: =#REF! -> 
A5: Наименование | B5: 2020 год | D5: 2021 год | F5: 2022 год | V5: 2020 год Факт по данным экспертов
F6: По данным организации | N6: По расчету экспертов
F7: Сумма арендной платы для включения в тариф | G7: Стоимость арендной платы по договору | H7: Стоимость арендной платы в соответствии с требованиями п. 28 Основ ценообразования | N7: Сумма арендной платы для включения в тариф | O7: Стоимость арендной платы по договору | P7: Стоимость арендной платы расчитанной в соответствии с требованиями п. 28 Основ ценообразования
B8: Утверждено | C8: Факт | D8: Утверждено | E8: Ожидаемые | H8: Всего | I8: амортизационные отчисления | J8: налог на имущество | K8: транспортный налог | L8: плата за землю | M8: иные обязательные платежи предусмотренные законодательством, связанные с арендуемым имуществом | P8: Всего | Q8: амортизационные отчисления | R8: налог на имущество | S8: транспортный налог | T8: плата за землю | U8: иные обязательные платежи предусмотренные законодательством, связанные с арендуемым имуществом
A9: 1 | B9: 2 | C9: 3 | D9: 4 | E9: 5 | F9: 6 | G9: 7 | H9: 8 | I9: 9 | J9: 10 | K9: 11 | L9: 12 | M9: 13 | N9: 14 | O9: 15 | P9: 16 | Q9: 17 | R9: 18 | S9: 19 | T9: 20 | U9: 21 | V9: 22
A10: Аренда объектов электроэнергетики, иных объектов производственного назначения, участвующих в процессе передачи электроэнергии | B10: =SUM(B11:B12) -> 0 | C10: 0 | D10: 0 | E10: 0 | F10: 0 | G10: 0 | H10: 0 | I10: 0 | J10: 0 | K10: 0 | L10: 0 | M10: 0 | N10: 0 | O10: 0 | P10: 0 | Q10: 0 | R10: 0 | S10: 0 | T10: 0 | U10: 0 | V10: 0
A11: договор с _____ от_____№ __ | F11: =MIN(G11,H11) -> 0 | H11: =I11+J11+K11+L11+M11 -> 0 | N11: =MIN(O11,P11) -> 0 | P11: =Q11+R11+S11+T11+U11 -> 0
A12: договор с _____ от_____№ __ | F12: =MIN(G12,H12) -> 0 | H12: =I12+J12+K12+L12+M12 -> 0 | N12: =MIN(O12,P12) -> 0 | P12: =Q12+R12+S12+T12+U12 -> 0
A13: Добавить
A14: Аренда помещений | B14: =SUM(B15:B16) -> 0 | C14: =SUM(C15:C16) -> 0 | D14: =SUM(D15:D16) -> 0 | E14: =SUM(E15:E16) -> 0 | F14: =SUM(F15:F16) -> 0 | G14: х | H14: х | I14: х | J14: х | K14: х | L14: х | M14: х | N14: =SUM(N15:N16) -> 0 | O14: х | P14: х | Q14: х | R14: х | S14: х | T14: х | U14: х | V14: =SUM(V15:V16) -> 0
A15: договор с _____ от_____№ __ | G15: х | H15: х | I15: х | J15: х | K15: х | L15: х | M15: х | O15: х | P15: х | Q15: х | R15: х | S15: х | T15: х | U15: х
A16: договор с _____ от_____№ __ | G16: х | H16: х | I16: х | J16: х | K16: х | L16: х | M16: х | O16: х | P16: х | Q16: х | R16: х | S16: х | T16: х | U16: х
A17: Добавить
A18: Аренда транспортных средств | B18: =SUM(B19:B20) -> 0 | C18: =SUM(C19:C20) -> 0 | D18: 0 | E18: 0 | F18: 0 | G18: х | H18: х | I18: х | J18: х | K18: х | L18: х | M18: х | N18: 0 | O18: х | P18: х | Q18: х | R18: х | S18: х | T18: х | U18: х | V18: =SUM(V19:V20) -> 0
A19: договор с _____ от_____№ __ | G19: х | H19: х | I19: х | J19: х | K19: х | L19: х | M19: х | O19: х | P19: х | Q19: х | R19: х | S19: х | T19: х | U19: х
A20: договор с _____ от_____№ __ | G20: х | H20: х | I20: х | J20: х | K20: х | L20: х | M20: х | O20: х | P20: х | Q20: х | R20: х | S20: х | T20: х | U20: х
A21: Добавить
A22: Лизинг | B22: =SUM(B23:B25) -> 0 | C22: =SUM(C23:C25) -> 0 | D22: =SUM(D23:D25) -> 0 | E22: =SUM(E23:E25) -> 0 | F22: =SUM(F23:F25) -> 0 | G22: х | H22: х | I22: х | J22: х | K22: х | L22: х | M22: х | N22: =SUM(N23:N25) -> 0 | O22: х | P22: х | Q22: х | R22: х | S22: х | T22: х | U22: х | V22: =SUM(V23:V25) -> 0
A23: объектов электросетевого хозяйства договор с _____ от_____№ __ | G23: х | H23: х | I23: х | J23: х | K23: х | L23: х | M23: х | O23: х | P23: х | Q23: х | R23: х | S23: х | T23: х | U23: х
A24: иного имущества договор с _____ от_____№ __ | G24: х | H24: х | I24: х | J24: х | K24: х | L24: х | M24: х | O24: х | P24: х | Q24: х | R24: х | S24: х | T24: х | U24: х
A25: договор с _____ от_____№ __ | G25: х | H25: х | I25: х | J25: х | K25: х | L25: х | M25: х | O25: х | P25: х | Q25: х | R25: х | S25: х | T25: х | U25: х
A26: Добавить
A27: ИТОГО расходы по аренде имущества, всего в том числе | B27: =B10+B14+B18+B22 -> 0 | C27: =C10+C14+C18+C22 -> 0 | D27: =D10+D14+D18+D22 -> 0 | E27: =E10+E14+E18+E22 -> 0 | F27: =F10+F14+F18+F22 -> 0 | G27: х | H27: х | I27: х | J27: х | K27: х | L27: х | M27: х | N27: =N10+N14+N18+N22 -> 0 | O27: х | P27: х | Q27: х | R27: х | S27: х | T27: х | U27: х | V27: =V10+V14+V18+V22 -> 0
A28: Расходы по аренде имущества, относимые на услугу по передаче электрической энергии | G28: х | H28: х | I28: х | J28: х | K28: х | L28: х | M28: х | O28: х | P28: х | Q28: х | R28: х | S28: х | T28: х | U28: х | Y28: Условное форматирование: если в ячейке не указано значение -форматируется красным цветом
A29: в т.ч. по уровням напряжения: ВН | B29: х | C29: х | E29: х | G29: х | H29: х | I29: х | J29: х | K29: х | L29: х | M29: х | O29: х | P29: х | Q29: х | R29: х | S29: х | T29: х | U29: х
A30: СН1 | B30: х | C30: х | E30: х | G30: х | H30: х | I30: х | J30: х | K30: х | L30: х | M30: х | O30: х | P30: х | Q30: х | R30: х | S30: х | T30: х | U30: х
A31: СН2 | B31: х | C31: х | E31: х | G31: х | H31: х | I31: х | J31: х | K31: х | L31: х | M31: х | O31: х | P31: х | Q31: х | R31: х | S31: х | T31: х | U31: х
A32: НН | B32: х | C32: х | E32: х | G32: х | H32: х | I32: х | J32: х | K32: х | L32: х | M32: х | O32: х | P32: х | Q32: х | R32: х | S32: х | T32: х | U32: х
A33: Для проверки прибыли на капитальные вложения (аренда и лизинг объектов электросетевого хозяйства) | B33: =B10+B23 -> 0 | C33: =C10+C23 -> 0 | D33: =D10+D23 -> 0 | E33: =E10+E23 -> 0 | F33: =F10+F23 -> 0 | G33: х | H33: х | I33: х | J33: х | K33: х | L33: х | M33: х | N33: =N10+N23 -> 0 | O33: х | P33: х | Q33: х | R33: х | S33: х | T33: х | U33: х | V33: =V10+V23 -> 0
A35: Руководитель организации | D35: =#REF! -> 
A39: Примечание:
A40: Сведения должны соответствовать данным отраженным в электронном формате по активам организации

Sheet Услуги ФСК (hidden)
A2: Оплата услуг ПАО "ФСК ЕЭС"
A3: =#REF! -> 
L4: тыс. руб.
A5: Показатели | B5: 2020 год | F5: 2021 год | J5: 2022 год | P5: 2020 год
B6: Утверждено | C6: Факт | F6: Утверждено | G6: Ожидаемые | J6: По данным организации | M6: По данным экспертов | P6: Факт по данным экспертов
B7: год | C7: 1 полугодие | D7: 2 полугодие | E7: год | F7: год | G7: 1 полугодие | H7: 2 полугодие | I7: год | J7: 1 полугодие | K7: 2 полугодие | L7: год | M7: 1 полугодие | N7: 2 полугодие | O7: год
A8: 1 | B8: 2 | C8: 3 | D8: 4 | E8: 5 | F8: 6 | G8: 7 | H8: 8 | I8: 9 | J8: 10 | K8: 11 | L8: 12 | M8: 13 | N8: 14 | O8: 15 | P8: 16
A9: Расходы на содержание сетей, тыс. руб. | B9: х | C9: =O26 -> 0 | D9: =P26 -> 0 | E9: =D9+C9 -> 0 | F9: х | G9: =G10*G11*6/1000 -> 0 | H9: =H10*H11*6/1000 -> 0 | I9: =H9+G9 -> 0 | J9: =J10*J11*6/1000 -> 0 | K9: =K10*K11*6/1000 -> 0 | L9: =K9+J9 -> 0 | M9: =M10*M11*6/1000 -> 0 | N9: =N10*N11*6/1000 -> 0 | O9: =M9+N9 -> 0 | P9: х
A10: Заявленная мощность в точках присоединения к сетям ПАО "ФСК ЕЭС", МВт | B10: х | C10: =B24 -> 0 | D10: =H24 -> 0 | E10: х | F10: х | I10: х | L10: х | O10: х | P10: х
A11: Ставка тарифа услуги по передаче электрической энергии на содержание объектов электросетевого хозяйства, входящих в ЕНЭС, руб. МВт/мес. | B11: х | C11: =B25 -> 0 | D11: =H25 -> 0 | E11: х | F11: х | I11: х | L11: х | O11: х | P11: х
A12: Расходы на компенсацию потерь, тыс. руб. | B12: х | C12: =C13*C16 ->  | D12: =D13*D16 ->  | E12: =D12+C12 ->  | F12: х | G12: =G13*G16 -> 0 | H12: =H13*H16 -> 0 | I12: =G12+H12 -> 0 | J12: =J13*J16 -> 0 | K12: =K13*K16 -> 0 | L12: =J12+K12 -> 0 | M12: =M13*M16 -> 0 | N12: =N13*N16 -> 0 | O12: =M12+N12 -> 0 | P12: х
A13: Объем технологических потерь электрической энергии при ее передаче по ЕНЭС, млн. кВт.ч | B13: х | C13: =C14*C15% -> 0 | D13: =D14*D15% -> 0 | E13: =E14*E15% -> 0 | F13: х | G13: =G14*G15% -> 0 | H13: 0 | I13: 0 | J13: 0 | K13: 0 | L13: 0 | M13: 0 | N13: 0 | O13: 0 | P13: х
A14: Объем отпуска электроэнергии из сети ПАО "ФСК ЕЭС" в сеть организации, млн. кВт.ч | B14: х | C14: =O28/1000 -> 0 | D14: =P28/1000 -> 0 | E14: =D14+C14 -> 0 | F14: х | I14: =H14+G14 -> 0 | L14: =K14+J14 -> 0 | O14: =N14+M14 -> 0 | P14: х
A15: Норматив технологических потерь электрической энергии при ее передаче по ЕНЭС, применяемый к отпуску электроэнергии из сети ПАО "ФСК ЕЭС", % | B15: х | C15: 3.89 | D15: 3.89 | E15: 3.89 | F15: х | G15: 3.89 | H15: 3.89 | I15: 3.89 | J15: 3.89 | K15: 3.89 | L15: 3.89 | M15: 3.89 | N15: 3.89 | O15: 3.89 | P15: х
A16: Ставка тарифа на оплату нормативных технологических потерь электрической энергии в ЕНЭС, руб./МВт.ч | B16: х | C16: =O31 ->  | D16: =P31 ->  | E16: х | F16: х | I16: х | L16: х | O16: х | P16: х
A17: ИТОГО оплата услуг ПАО "ФСК ЕЭС" | C17: =C9+C12 ->  | D17: =D9+D12 ->  | E17: =IFERROR(E9+E12,0) -> 0 | G17: =G9+G12 -> 0 | H17: 0 | I17: 0 | J17: 0 | K17: 0 | L17: 0 | M17: 0 | N17: 0 | O17: 0
A19: Руководитель организации | D19: =#REF! -> 
A21: Факт по данным организации за 2020 год
B23: янв | C23: фев | D23: мар | E23: апр | F23: май | G23: июн | H23: июль | I23: авг | J23: сент | K23: окт | L23: ноя | M23: дек | N23: Итого | O23: 1 полуг | P23: 2 полуг
A24: Заявленная мощность в точках присоединения к сетям ПАО "ФСК ЕЭС", МВт | N24: х | O24: х | P24: х
A25: Ставка тарифа услуги по передаче электрической энергии на содержание объектов электросетевого хозяйства, входящих в ЕНЭС, руб. МВт/мес. | C25: =B25 -> 0 | D25: =C25 -> 0 | E25: =D25 -> 0 | F25: =E25 -> 0 | G25: =F25 -> 0 | I25: =H25 -> 0 | J25: =I25 -> 0 | K25: =J25 -> 0 | L25: =K25 -> 0 | M25: =L25 -> 0 | N25: х | O25: х | P25: х
A26: Стоимость услуги по передаче электрической энергии на содержание объектов элкутросетевого хозяйства, тыс. руб. | B26: =B24*B25/1000 -> 0 | C26: =C24*C25/1000 -> 0 | D26: 0 | E26: 0 | F26: 0 | G26: 0 | H26: 0 | I26: 0 | J26: 0 | K26: 0 | L26: 0 | M26: =M24*M25/1000 -> 0 | N26: =SUM(B26:M26) -> 0 | O26: =SUM(B26:G26) -> 0 | P26: =SUM(H26:M26) -> 0
B27: янв | C27: фев | D27: мар | E27: апр | F27: май | G27: июн | H27: июль | I27: авг | J27: сент | K27: окт | L27: ноя | M27: дек | N27: Итого | O27: 1 полуг | P27: 2 полуг
A28: Отпуск электрической энергии из сетей ПАО "ФСК ЕЭС" напряжением 220 кВ и ниже, МВт.ч | N28: =SUM(B28:M28) -> 0 | O28: =SUM(B28:G28) -> 0 | P28: =SUM(H28:M28) -> 0
A29: Норматив технологических потерь электрической энергии при ее передаче по ЕНЭС, применяемый к отпуску электроэнергии из сети ПАО "ФСК ЕЭС" , % | B29: 3.89 | C29: =B29 -> 3.89 | D29: =C29 -> 3.89 | E29: 3.89 | F29: 3.89 | G29: 3.89 | H29: 3.89 | I29: 3.89 | J29: 3.89 | K29: 3.89 | L29: 3.89 | M29: =L29 -> 3.89 | N29: х | O29: х | P29: х
A30: Объем технологических потерь электрической энергии при ее передаче по ЕНЭС, МВт.ч | B30: =ROUND(B28*B29/100,3) -> 0 | C30: =ROUND(C28*C29/100,3) -> 0 | D30: 0 | E30: 0 | F30: 0 | G30: 0 | H30: 0 | I30: 0 | J30: 0 | K30: 0 | L30: 0 | M30: =ROUND(M28*M29/100,3) -> 0 | N30: =SUM(B30:M30) -> 0 | O30: =SUM(B30:G30) -> 0 | P30: =SUM(H30:M30) -> 0
A31: Ставка тарифа на оплату нормативных технологических потерь электрической энергии в ЕНЭС, руб./МВт.ч | N31: =N32/N30*1000 ->  | O31: =O32/O30*1000 ->  | P31: =P32/P30*1000 -> 
A32: Расходы на компенсацию потерь, тыс. руб. | B32: =B30*B31/1000 -> 0 | C32: =C30*C31/1000 -> 0 | D32: 0 | E32: 0 | F32: 0 | G32: 0 | H32: 0 | I32: 0 | J32: 0 | K32: 0 | L32: 0 | M32: =M30*M31/1000 -> 0 | N32: =SUM(B32:M32) -> 0 | O32: =SUM(B32:G32) -> 0 | P32: =SUM(H32:M32) -> 0
A33: Итого расходы на услуги ФСК, тыс. руб. | B33: =B26+B32 -> 0 | C33: =C26+C32 -> 0 | D33: 0 | E33: 0 | F33: 0 | G33: 0 | H33: 0 | I33: 0 | J33: 0 | K33: 0 | L33: 0 | M33: =M26+M32 -> 0 | N33: =N26+N32 -> 0 | O33: =O26+O32 -> 0 | P33: =P26+P32 -> 0

Sheet СВОД по % по рассрочке (hidden)
B2: Выпадающие доходы сетевой организации от выплаты процентов по кредитным договорам, связанным с рассрочкой по оплате субъектами малого и среднего предпринимательства технологического присоединения энергопринимающих устройств максимальной мощностью свыше 15 кВт и до 150 кВт включительно в 2022 году
A3: =#REF! -> 
A5: N п/п | B5: Информация о договоре технологического присоединения (Контрагент (наименование), № договора ТП, Дата заключения договора) | F5: Ставка рефинансирования Центрального банка Российской Федерации | G5: Год закрытия | H5: Квартал закрытия | I5: Сумма договора,тыс. руб. с НДС | J5: Размер расходов, связанных с предоставлением беспроцентной рассрочки в 2021 году, тыс. руб.
A8: 1 | B8: 2 | F8: 3 | G8: 4 | H8: 5 | I8: 6 | J8: 7
A9: 1 | B9: =Заявитель1!A4 -> 0 | F9: =Заявитель1!B31 -> 0 | G9: =Заявитель1!B34 -> 0 | H9: =Заявитель1!B32 -> 0 | I9: =Заявитель1!B33 -> 0 | J9: =Заявитель1!G36 -> 0
A10: 2 | B10: =Заявитель2!A4 -> 0 | F10: =Заявитель2!B31 -> 0 | G10: =Заявитель2!B34 -> 0 | H10: =Заявитель2!B32 -> 0 | I10: =Заявитель2!B33 -> 0 | J10: =Заявитель2!G36 -> 0
A11: 3 | B11: =Заявитель3!A4 -> 0 | F11: =Заявитель3!B31 -> 0 | G11: =Заявитель3!B34 -> 0 | H11: =Заявитель3!B32 -> 0 | I11: =Заявитель3!B33 -> 0 | J11: =Заявитель3!G36 -> 0
A12: 4 | B12: =Заявитель4!A4 -> 0 | F12: =Заявитель4!B31 -> 0 | G12: =Заявитель4!B34 -> 0 | H12: =Заявитель4!B32 -> 0 | I12: =Заявитель4!B33 -> 0 | J12: =Заявитель4!G36 -> 0
A16: Добавить
A17: ИТОГО | I17: =SUM(I9:I16) -> 0 | J17: =SUM(J9:J16) -> 0
B19: Свод по кварталам | C19: Сумма по договорам
B20: 1 | C20: =SUMIF(H$5:H$21,B20,I$5:I$21) -> 0
B21: 2 | C21: =SUMIF(H$5:H$21,B21,I$5:I$21) -> 0
B22: 3 | C22: =SUMIF(H$5:H$21,B22,I$5:I$21) -> 0
B23: 4 | C23: =SUMIF(H$5:H$21,B23,I$5:I$21) -> 0
B24: ГОД | C24: =SUM(C20:C23) -> 0
C25: =C24-I17 -> 0
F27: Приложение 2 к Методическим указаниям, утвержденным приказом ФСТ от 11.09.2014 г. №215-э/1
A31: Таблица 1. Расчет суммарного размера платы за технологическое присоединение, подлежащего беспроцентной рассрочке
B33: =#REF! -> 
Q34: тыс. руб. с НДС
A35: N п/п | B35: Показатель | F35: Фактические данные за предыдущий период регулирования | K35: Ожидаемые данные за текущий период регулирования | P35: Плановые показатели на следующий период регулирования
F36: 1 кв. | G36: 2 кв. | H36: 3 кв. | I36: 4 кв. | J36: всего за год | K36: 1 кв. | L36: 2 кв. | M36: 3 кв. | N36: 4 кв. | O36: всего за год | P36: 1 кв. | Q36: 2 кв. | R36: 3 кв. | S36: 4 кв. | T36: всего за год
A37: 1 | B37: Суммарный размер платы за технологическое присоединение, тыс. руб., в т.ч.: | J37: =SUM(F37:I37) -> 0 | O37: =SUM(K37:N37) -> 0 | P37: =C20 -> 0 | Q37: =C21 -> 0 | R37: =C22 -> 0 | S37: =C23 -> 0 | T37: =SUM(P37:S37) -> 0
A38: 2 | B38: Суммарный размер платы за технологическое присоединение, подлежащий беспроцентной рассрочке | J38: =SUM(F38:I38) -> 0 | O38: =SUM(K38:N38) -> 0 | P38: =P37*0.95 -> 0 | Q38: =Q37*0.95 -> 0 | R38: =R37*0.95 -> 0 | S38: =S37*0.95 -> 0 | T38: =T37*0.95 -> 0
B40: Руководитель организации | D40: =#REF! -> 
A42: Примечание:
A43: 1) Суммарный размер платы за технологическое присоединение (п. 1) за каждый квартал следующего расчетного периода регулирования представляет собой прогнозную величину платы за технологическое присоединение для заявителей, обращающихся за беспроцентной рассрочкой, определенную на основе фактических данных о заявителях, обратившихся за рассрочкой за последний год, но не ниже документально подтвержденных данных о заявителях, обратившихся за рассрочкой на следующий период регулирования.
A44: 2) Суммарный размер платы за технологическое присоединение, подлежащий беспроцентной рассрочке (п. 2), за каждый квартал определяется как суммарный размер платы за технологическое присоединение (п. 1) за каждый квартал, умноженный на 0,95.

Sheet Возврат заемных средств (hidden)
A2: Расходы на возврат и обслуживание долгосрочных заемных средств, направляемых на финансирование капитальных вложений
A3: =#REF! -> 
A5: Показатели | B5: 2020 год | D5: 2021 год | F5: 2022 год | H5: 2020 год
B6: Утверждено | C6: Факт | D6: Утверждено | E6: Ожидаемые | F6: По данным организации | G6: По данным экспертов | H6: Факт по данным экспертов
A7: 1 | B7: 2 | C7: 3 | D7: 4 | E7: 5 | F7: 6 | G7: 7 | H7: 7
A8: Расходы по возврату заемных средств, направляемых на финансирование капитальных вложений
A9: Расходы на обслуживание долгосрочных заемных средств, направляемых на финансирование капитальных вложений
A10: Итого расходы на возврат и обслуживание долгосрочных заемных средств, направляемых на финансирование капитальных вложений | B10: =B9+B8 -> 0 | C10: 0 | D10: 0 | E10: 0 | F10: 0 | G10: 0 | H10: 0
A11: в т.ч. по уровням напряжения: ВН | B11: х | C11: х | E11: х
A12: СН1 | B12: х | C12: х | E12: х
A13: СН11 | B13: х | C13: х | E13: х
A14: НН | B14: х | C14: х | E14: х
A16: Руководитель организации | D16: =#REF! -> 

Sheet НВВ для шаблона ЕИАС отчет (hidden)
A2: Наименование организации | B2: Период | C2: Расчет коэффициента индексации | M2: Расчет подконтрольных расходов | AH2: Расчет неподконтрольных расходов | BB2: Расходы, связанные с компенсацией незапланированных расходов или полученного избытка | BC2: Итого НВВ на содержание сетей | BD2: в том числе | BF2: Доля стороннего отпуска в сеть от организаций, занимающихся несколькими видами деятельности (без собственных нужд) | BG2: Отношение НВВ на содержание сетей текущего года к предыдущему года | BH2: Поступление в сеть электроэнергии | BI2: Объем технологического расхода (потерь) | BJ2: Тариф на покупку потерь | BK2: Норматив техноло-гического расхода (потерь) электро-энергии | BL2: Итого расходов на оплату потерь | BM2: в том числе | BO2: Прирост расходов на оплату потерь текущего года к предыдущему году | BP2: Поступление в сеть мощности | BQ2: Уровень надежности реализуемых товаров (услуг) (П п) | BR2: Уровень качества реализуемых товаров (услуг) (П тсо) | BS2: Уровень качества реализуемых товаров (услуг) (П тпр)
C3: Инфляция | D3: Индекс эффективности операционных расходов | E3: Количество активов, всего | F3: ВН | G3: СН1 | H3: СН2 | I3: НН | J3: Индекс изменения количества активов | K3: Коэффициент эластичности затрат по росту активов | L3: Итого коэффициент индексации | M3: Материальные затраты | N3: Сырье, материалы, запасные части, инструмент, топливо | O3: Работы и услуги производственного характера (в т.ч. услуги сторонних организаций по содержанию сетей и распределительных устройств) | P3: Расходы на оплату труда | Q3: Прочие расходы, всего, в том числе: | R3: Ремонт основных фондов | S3: Оплата работ и услуг сторонних организаций | T3: услуги связи | U3: Расходы на услуги вневедомственной охраны и коммунального хозяйства | V3: Расходы на юридические и информационные услуги | W3: Расходы на аудиторские и консультационные услуги | X3: Транспортные услуги | Y3: Прочие услуги сторонних организаций | Z3: Расходы на командировки и представительские | AA3: Расходы на подготовку кадров | AB3: Расходы на обеспечение нормальных условий труда и мер по технике безопасности | AC3: Расходы на страхование | AD3: Другие прочие расходы | AE3: Электроэнергия на хоз. нужды | AF3: Подконтрольные расходы из прибыли | AG3: ИТОГО подконтрольные расходы | AH3: Оплата услуг ОАО "ФСК ЕЭС" | AI3: в том числе | AK3: Теплоэнергия | AL3: Аренда, всего | AM3: в том числе аренда объектов электро- сетевого комплекса | AN3: Налоги (без учета налога на прибыль), всего, в том числе: | AO3: плата за землю | AP3: Налог на имущество | AQ3: Прочие налоги и сборы | AR3: Отчисления на социальные нужды (ЕСН) | AS3: Прочие неподконтрольные расходы | AT3: Налог на прибыль, в том числе: | AU3: налог на прибыль на капитальные вложения | AV3: Выпадающие доходы по п.87 Основ ценообразования | AW3: Амортизация ОС | AX3: Прибыль на капитальные вложения | AY3: Возврат заемных средств, направляемый на финансирование капитальных вложений | AZ3: Проверка прибыли на капитальные вложения (не более 12% от НВВ на содержание сетей) | BA3: ИТОГО неподконтрольных расходов
AI4: Оплата услуг ОАО "ФСК ЕЭС" 1 полугодие | AJ4: Оплата услуг ОАО "ФСК ЕЭС" 2 полугодие | BD4: НВВ на 1 полугодие | BE4: НВВ на 2 полугодие | BM4: расходы на 1 полугодие | BN4: расходы на 2 полугодие
C5: % | D5: % | E5: у.е. | F5: у.е. | G5: у.е. | H5: у.е. | I5: у.е. | J5: % | M5: тыс.руб | N5: тыс.руб | O5: тыс.руб | P5: тыс.руб | Q5: тыс.руб | R5: тыс.руб | S5: тыс.руб | T5: тыс.руб | U5: тыс.руб | V5: тыс.руб | W5: тыс.руб | X5: тыс.руб | Y5: тыс.руб | Z5: тыс.руб | AA5: тыс.руб | AB5: тыс.руб | AC5: тыс.руб | AD5: тыс.руб | AE5: тыс.руб | AF5: тыс.руб | AG5: тыс.руб | AH5: тыс.руб | AI5: тыс.руб | AJ5: тыс.руб | AK5: тыс.руб | AL5: тыс.руб | AM5: тыс.руб | AN5: тыс.руб | AO5: тыс.руб | AP5: тыс.руб | AQ5: тыс.руб | AR5: тыс.руб | AS5: тыс.руб | AT5: тыс.руб | AU5: тыс.руб | AV5: тыс.руб | AW5: тыс.руб | AX5: тыс.руб | AY5: тыс.руб | AZ5: % | BA5: тыс.руб | BB5: тыс.руб | BC5: тыс.руб | BD5: тыс.руб | BE5: тыс.руб | BF5: % | BG5: % | BH5: млн.кВтч | BI5: млн.кВтч | BJ5: руб./МВтч | BK5: % | BL5: тыс.руб | BM5: тыс.руб | BN5: тыс.руб | BO5: % | BP5: МВт
A6: А | B6: Б | C6: 0.1 | D6: 0.2 | E6: 0.3 | F6: 0.3.1 | G6: 0.3.2 | H6: 0.3.3 | I6: 0.3.4 | J6: 0.4 | K6: 0.5 | L6: 0.6 | M6: 1.1 | N6: 1.1.1 | O6: 1.1.2 | P6: 1.2 | Q6: 1.3 | R6: 1.3.1 | S6: 1.3.2 | T6: 1.3.2.1 | U6: 1.3.2.2 | V6: 1.3.2.3 | W6: 1.3.2.4 | X6: 1.3.2.5 | Y6: 1.3.2.6 | Z6: 1.3.3 | AA6: 1.3.4 | AB6: 1.3.5 | AC6: 1.3.6 | AD6: 1.3.7 | AE6: 1.4 | AF6: 1.5 | AG6: 1.6 | AH6: 2.1 | AI6: 2.1.1 | AJ6: 2.1.2 | AK6: 2.2 | AL6: 2.3 | AM6: 2.3.1 | AN6: 2.4 | AO6: 2.4.1 | AP6: 2.4.2 | AQ6: 2.4.3 | AR6: 2.5 | AS6: 2.6 | AT6: 2.7 | AU6: 2.7.1 | AV6: 2.8 | AW6: 2.9 | AX6: 2.10 | AY6: 2.11 | AZ6: 2.12 | BA6: 2.13 | BB6: 3 | BC6: 4 | BD6: 4.1 | BE6: 4.2 | BF6: 5 | BG6: 6 | BH6: 7 | BI6: 8 | BJ6: 9 | BK6: 10 | BL6: 11 | BM6: 11.1 | BN6: 11.2 | BO6: 12 | BP6: 13 | BQ6: 14 | BR6: 15.1 | BS6: 15.2
A7: =#REF! ->  | B7: 2020 | D7: =#REF! ->  | E7: =SUM(F7:I7) -> 0 | K7: 0.75 | M7: =SUM(N7:O7) ->  | N7: =#REF! ->  | O7: =#REF! ->  | P7: =#REF! ->  | Q7: =R7+S7+Z7+AA7+AB7+AC7+AD7+AC7+AF7 ->  | R7: =#REF! ->  | S7: =SUM(T7:Y7) ->  | Y7: =#REF! ->  | Z7: =#REF! ->  | AA7: =#REF! ->  | AB7: =#REF! ->  | AC7: =#REF!+#REF! ->  | AE7: =#REF! ->  | AF7: =#REF! ->  | AG7: =M7+P7+Q7 ->  | AH7: ='Услуги ФСК'!B33 -> 0 | AI7: =AH7/2 -> 0 | AJ7: =AI7 -> 0 | AK7: =#REF! ->  | AL7: =#REF! ->  | AM7: ='Аренда имущества'!D33 -> 0 | AN7: =SUM(AO7:AQ7) ->  | AO7: =#REF! ->  | AP7: =#REF! ->  | AQ7: =#REF!+#REF! ->  | AR7: =#REF! ->  | AS7: =#REF! ->  | AT7: =#REF! ->  | AU7: =AX7/0.8*0.2 ->  | AV7: =#REF! ->  | AW7: =#REF! ->  | AX7: =#REF! ->  | AY7: =#REF! ->  | AZ7: =AX7/0.8*0.2 ->  | BA7: =#REF! ->  | BB7: =#REF! ->  | BC7: =#REF! ->  | BD7: =#REF! ->  | BH7: ='НВВ для шаблона ЕИАС предел'!BH7 -> 179315.8865 | BI7: ='Баланс энергии'!AG18 -> 12980.3 | BK7: =IF(BH7=0,0,BI7/BH7) -> 0.07238789744 | BL7: =BI7*BJ7 -> 0 | BM7: =#REF! ->  | BN7: =BL7-BM7 ->  | BQ7: =#REF! ->  | BR7: =#REF! ->  | BS7: =#REF! -> 
B8: 2021 | C8: =#REF! ->  | D8: =D7 ->  | E8: =SUM(F8:I8) ->  | F8: =#REF! ->  | G8: =#REF! ->  | H8: =#REF! ->  | I8: =#REF! ->  | J8: =IF(E7=0,0,(E8-E7)/E7*K8) -> 0 | K8: 0.75 | L8: =(1+C8)*(1-D8)*(1+J8) ->  | M8: =SUM(N8:O8) ->  | N8: =N7*$L8 ->  | O8: =O7*L8 ->  | P8: =P7*$L8 ->  | Q8: =R8+S8+Z8+AA8+AB8+AC8+AD8+AE8+AF8 ->  | R8: =R7*$L8 ->  | S8: =SUM(T8:Y8) ->  | T8: =T7*$L8 ->  | U8: =U7*L8 ->  | V8: =V7*L8 ->  | W8: =W7*$L8 ->  | X8: =X7*$L8 ->  | AG8: =M8+P8+Q8 ->  | AH8: ='Услуги ФСК'!F33 -> 0 | AI8: =AH8/2 -> 0 | AJ8: =AI8 -> 0 | AK8: =#REF! ->  | AL8: =#REF! ->  | AN8: =SUM(AO8:AQ8) ->  | AO8: =#REF! ->  | AP8: =#REF! ->  | AQ8: =#REF!+#REF! ->  | AR8: =#REF! ->  | AS8: =#REF! ->  | AT8: =#REF! ->  | AU8: =AX7/0.8*0.2 ->  | AV8: =#REF! ->  | AW8: =#REF! ->  | AX8: =#REF! ->  | AY8: =#REF! ->  | AZ8: =nerr((AX8+AY8)/(BC8-AH8-AU8-AX8-AY8-AM8)) ->  | BA8: =AH8+AK8+AL8+AN8+AS8+AT8+AV8+AR8+AW8+AX8+AY8 ->  | BB8: =#REF! ->  | BC8: =SUM(BA8,BB8,AG8) ->  | BF8: =nerr((BD8+BE8)/BC8) ->  | BG8: =nerr((BC8-BC7)/BC7) ->  | BH8: ='Баланс энергии'!AG8 -> 177085.2 | BI8: =BI7 -> 12980.3 | BK8: =IF(BH8=0,0,BI8/BH8) -> 0.07329974498 | BL8: =BI8*BJ8 -> 0 | BM8: =#REF!/2 ->  | BN8: =BL8-BM8 ->  | BO8: =nerr((BL8-BL7)/BL7) ->  | BQ8: =#REF! ->  | BR8: =#REF! ->  | BS8: =#REF! -> 
B9: 2022 | D9: =D8 ->  | E9: =SUM(F9:I9) ->  | F9: =#REF! ->  | G9: =#REF! ->  | H9: =#REF! ->  | I9: =#REF! ->  | J9: =IF(E8=0,0,(E9-E8)/E8*K9) ->  | K9: 0.75 | L9: =(1+C9)*(1-D9)*(1+J9) ->  | M9: =SUM(N9:O9) ->  | N9: =N8*$L9 ->  | O9: =O8*L9 ->  | P9: =P8*$L9 ->  | Q9: =R9+S9+Z9+AA9+AB9+AC9+AD9+AE9+AF9 ->  | R9: =R8*$L9 ->  | S9: =SUM(T9:Y9) ->  | T9: =T8*$L9 ->  | U9: =U8*L9 ->  | V9: =V8*L9 ->  | W9: =W8*$L9 ->  | AG9: =M9+P9+Q9 ->  | AH9: =AI9+AJ9 -> 0 | AI9: ='Услуги ФСК'!J33 -> 0 | AJ9: ='Услуги ФСК'!K33 -> 0 | AN9: =SUM(AO9:AQ9) -> 0 | AZ9: =nerr((AX9+AY9)/(BC9-AH9-AU9-AX9-AY9-AM9)) ->  | BA9: =AH9+AK9+AL9+AN9+AS9+AT9+AV9+AR9+AW9+AX9+AY9 -> 0 | BC9: =SUM(BA9,BB9,AG9) ->  | BF9: =nerr((BD9+BE9)/BC9) ->  | BG9: =nerr((BC9-BC8)/BC8) ->  | BI9: =BI8 -> 12980.3 | BK9: =IF(BH9=0,0,BI9/BH9) -> 0 | BL9: =BI9*BJ9 -> 0 | BM9: =#REF!/2 ->  | BN9: =BL9-BM9 ->  | BO9: =nerr((BL9-BL8)/BL8) -> 
B10: 2023 | D10: =D9 ->  | E10: =SUM(F10:I10) -> 0 | J10: =IF(E9=0,0,(E10-E9)/E9*K10) ->  | K10: 0.75 | L10: =(1+C10)*(1-D10)*(1+J10) ->  | M10: =SUM(N10:O10) ->  | N10: =N9*$L10 ->  | O10: =O9*L10 ->  | P10: =P9*$L10 ->  | Q10: =R10+S10+Z10+AA10+AB10+AC10+AD10+AE10+AF10 ->  | R10: =R9*$L10 ->  | S10: =SUM(T10:Y10) ->  | T10: =T9*$L10 ->  | U10: =U9*L10 ->  | V10: =V9*L10 ->  | W10: =W9*$L10 ->  | AG10: =M10+P10+Q10 ->  | AH10: =AI10+AJ10 -> 0 | AN10: =SUM(AO10:AQ10) -> 0 | AZ10: =nerr((AX10+AY10)/(BC10-AH10-AU10-AX10-AY10-AM10)) ->  | BA10: =AH10+AK10+AL10+AN10+AS10+AT10+AV10+AR10+AW10+AX10+AY10 -> 0 | BC10: =SUM(BA10,BB10,AG10) ->  | BF10: =nerr((BD10+BE10)/BC10) ->  | BG10: =nerr((BC10-BC9)/BC9) ->  | BI10: =BI9 -> 12980.3 | BK10: =IF(BH10=0,0,BI10/BH10) -> 0 | BL10: =BI10*BJ10 -> 0 | BM10: =#REF!/2 ->  | BN10: =BL10-BM10 ->  | BO10: =nerr((BL10-BL9)/BL9) -> 
B11: 2024 | D11: =D10 ->  | E11: =SUM(F11:I11) -> 0 | J11: =IF(E10=0,0,(E11-E10)/E10*K11) -> 0 | K11: 0.75 | L11: =(1+C11)*(1-D11)*(1+J11) ->  | M11: =SUM(N11:O11) ->  | N11: =N10*$L11 ->  | O11: =O10*L11 ->  | P11: =P10*$L11 ->  | Q11: =R11+S11+Z11+AA11+AB11+AC11+AD11+AE11+AF11 ->  | R11: =R10*$L11 ->  | S11: =SUM(T11:Y11) ->  | T11: =T10*$L11 ->  | U11: =U10*L11 ->  | V11: =V10*L11 ->  | W11: =W10*$L11 ->  | AG11: =M11+P11+Q11 ->  | AH11: =AI11+AJ11 -> 0 | AN11: =SUM(AO11:AQ11) -> 0 | AZ11: =((AX11+AY11)/(BC11-AH11-AU11-AX11-AY11-AM11)) ->  | BA11: =AH11+AK11+AL11+AN11+AS11+AT11+AV11+AR11+AW11+AX11+AY11 -> 0 | BC11: =SUM(BA11,BB11,AG11) ->  | BF11: =((BD11+BE11)/BC11) ->  | BG11: =nerr((BC11-BC10)/BC10) ->  | BI11: =BI10 -> 12980.3 | BK11: =IF(BH11=0,0,BI11/BH11) -> 0 | BL11: =BI11*BJ11 -> 0 | BM11: =#REF!/2 ->  | BN11: =BL11-BM11 ->  | BO11: =nerr((BL11-BL10)/BL10) -> 

Sheet НВВ для шаблона ЕИАС предел (hidden)
A2: Наименование организации | B2: Период | C2: Расчет коэффициента индексации | M2: Расчет подконтрольных расходов | AH2: Расчет неподконтрольных расходов | BB2: Расходы, связанные с компенсацией незапланированных расходов или полученного избытка | BC2: Итого НВВ на содержание сетей | BD2: в том числе | BF2: Доля стороннего отпуска в сеть от организаций, занимающихся несколькими видами деятельности (без собственных нужд) | BG2: Отношение НВВ на содержание сетей текущего года к предыдущему года | BH2: Поступление в сеть электроэнергии | BI2: Объем технологического расхода (потерь) | BJ2: Тариф на покупку потерь | BK2: Норматив техноло-гического расхода (потерь) электро-энергии | BL2: Итого расходов на оплату потерь | BM2: в том числе | BO2: Прирост расходов на оплату потерь текущего года к предыдущему году | BP2: Поступление в сеть мощности | BQ2: Уровень надежности реализуемых товаров (услуг) (П п) | BR2: Уровень качества реализуемых товаров (услуг) (П тсо) | BS2: Уровень качества реализуемых товаров (услуг) (П тпр)
C3: Инфляция | D3: Индекс эффективности операционных расходов | E3: Количество активов, всего | F3: ВН | G3: СН1 | H3: СН2 | I3: НН | J3: Индекс изменения количества активов | K3: Коэффициент эластичности затрат по росту активов | L3: Итого коэффициент индексации | M3: Материальные затраты | N3: Сырье, материалы, запасные части, инструмент, топливо | O3: Работы и услуги производственного характера (в т.ч. услуги сторонних организаций по содержанию сетей и распределительных устройств) | P3: Расходы на оплату труда | Q3: Прочие расходы, всего, в том числе: | R3: Ремонт основных фондов | S3: Оплата работ и услуг сторонних организаций | T3: услуги связи | U3: Расходы на услуги вневедомственной охраны и коммунального хозяйства | V3: Расходы на юридические и информационные услуги | W3: Расходы на аудиторские и консультационные услуги | X3: Транспортные услуги | Y3: Прочие услуги сторонних организаций | Z3: Расходы на командировки и представительские | AA3: Расходы на подготовку кадров | AB3: Расходы на обеспечение нормальных условий труда и мер по технике безопасности | AC3: Расходы на страхование | AD3: Другие прочие расходы | AE3: Электроэнергия на хоз. нужды | AF3: Подконтрольные расходы из прибыли | AG3: ИТОГО подконтрольные расходы | AH3: Оплата услуг ОАО "ФСК ЕЭС" | AI3: в том числе | AK3: Теплоэнергия | AL3: Аренда, всего | AM3: в том числе аренда объектов электро- сетевого комплекса | AN3: Налоги (без учета налога на прибыль), всего, в том числе: | AO3: плата за землю | AP3: Налог на имущество | AQ3: Прочие налоги и сборы | AR3: Отчисления на социальные нужды (ЕСН) | AS3: Прочие неподконтрольные расходы | AT3: Налог на прибыль, в том числе: | AU3: налог на прибыль на капитальные вложения | AV3: Выпадающие доходы по п.87 Основ ценообразования | AW3: Амортизация ОС | AX3: Прибыль на капитальные вложения | AY3: Возврат заемных средств, направляемый на финансирование капитальных вложений | AZ3: Проверка прибыли на капитальные вложения (не более 12% от НВВ на содержание сетей) | BA3: ИТОГО неподконтрольных расходов
AI4: Оплата услуг ОАО "ФСК ЕЭС" 1 полугодие | AJ4: Оплата услуг ОАО "ФСК ЕЭС" 2 полугодие | BD4: НВВ на 1 полугодие | BE4: НВВ на 2 полугодие | BM4: расходы на 1 полугодие | BN4: расходы на 2 полугодие
C5: % | D5: % | E5: у.е. | F5: у.е. | G5: у.е. | H5: у.е. | I5: у.е. | J5: % | M5: тыс.руб | N5: тыс.руб | O5: тыс.руб | P5: тыс.руб | Q5: тыс.руб | R5: тыс.руб | S5: тыс.руб | T5: тыс.руб | U5: тыс.руб | V5: тыс.руб | W5: тыс.руб | X5: тыс.руб | Y5: тыс.руб | Z5: тыс.руб | AA5: тыс.руб | AB5: тыс.руб | AC5: тыс.руб | AD5: тыс.руб | AE5: тыс.руб | AF5: тыс.руб | AG5: тыс.руб | AH5: тыс.руб | AI5: тыс.руб | AJ5: тыс.руб | AK5: тыс.руб | AL5: тыс.руб | AM5: тыс.руб | AN5: тыс.руб | AO5: тыс.руб | AP5: тыс.руб | AQ5: тыс.руб | AR5: тыс.руб | AS5: тыс.руб | AT5: тыс.руб | AU5: тыс.руб | AV5: тыс.руб | AW5: тыс.руб | AX5: тыс.руб | AY5: тыс.руб | AZ5: % | BA5: тыс.руб | BB5: тыс.руб | BC5: тыс.руб | BD5: тыс.руб | BE5: тыс.руб | BF5: % | BG5: % | BH5: млн.кВтч | BI5: млн.кВтч | BJ5: руб./МВтч | BK5: % | BL5: тыс.руб | BM5: тыс.руб | BN5: тыс.руб | BO5: % | BP5: МВт
A6: А | B6: Б | C6: 0.1 | D6: 0.2 | E6: 0.3 | F6: 0.3.1 | G6: 0.3.2 | H6: 0.3.3 | I6: 0.3.4 | J6: 0.4 | K6: 0.5 | L6: 0.6 | M6: 1.1 | N6: 1.1.1 | O6: 1.1.2 | P6: 1.2 | Q6: 1.3 | R6: 1.3.1 | S6: 1.3.2 | T6: 1.3.2.1 | U6: 1.3.2.2 | V6: 1.3.2.3 | W6: 1.3.2.4 | X6: 1.3.2.5 | Y6: 1.3.2.6 | Z6: 1.3.3 | AA6: 1.3.4 | AB6: 1.3.5 | AC6: 1.3.6 | AD6: 1.3.7 | AE6: 1.4 | AF6: 1.5 | AG6: 1.6 | AH6: 2.1 | AI6: 2.1.1 | AJ6: 2.1.2 | AK6: 2.2 | AL6: 2.3 | AM6: 2.3.1 | AN6: 2.4 | AO6: 2.4.1 | AP6: 2.4.2 | AQ6: 2.4.3 | AR6: 2.5 | AS6: 2.6 | AT6: 2.7 | AU6: 2.7.1 | AV6: 2.8 | AW6: 2.9 | AX6: 2.10 | AY6: 2.11 | AZ6: 2.12 | BA6: 2.13 | BB6: 3 | BC6: 4 | BD6: 4.1 | BE6: 4.2 | BF6: 5 | BG6: 6 | BH6: 7 | BI6: 8 | BJ6: 9 | BK6: 10 | BL6: 11 | BM6: 11.1 | BN6: 11.2 | BO6: 12 | BP6: 13 | BQ6: 14 | BR6: 15.1 | BS6: 15.2
B7: 2020 | C7: =#REF! ->  | D7: =#REF! ->  | E7: =SUM(F7:I7) ->  | F7: =#REF! ->  | G7: =#REF! ->  | H7: =#REF! ->  | I7: =#REF! ->  | M7: =SUM(N7:O7) ->  | N7: =#REF! ->  | O7: =#REF! ->  | P7: =#REF! ->  | Q7: =R7+S7+Z7+AA7+AB7+AC7+AD7+AE7+AF7 ->  | R7: =#REF! ->  | S7: =SUM(T7:Y7) -> 0 | Z7: =#REF! ->  | AA7: =#REF! ->  | AB7: =#REF! ->  | AC7: =#REF! ->  | AD7: =#REF!+#REF! ->  | AF7: =#REF! ->  | AG7: =M7+P7+Q7 ->  | AH7: ='Услуги ФСК'!F17 -> 0 | AI7: =AH7/2 -> 0 | AJ7: =AI7 -> 0 | AK7: =#REF! ->  | AL7: =#REF! ->  | AM7: ='Аренда имущества'!D33 -> 0 | AN7: =SUM(AO7:AQ7) ->  | AO7: =#REF! ->  | AP7: =#REF! ->  | AQ7: =#REF!+#REF! ->  | AR7: =#REF! ->  | AS7: =#REF! ->  | AT7: =#REF! ->  | AU7: =AX7/0.8*0.2 ->  | AV7: =#REF! ->  | AW7: =#REF! ->  | AX7: =#REF! ->  | AY7: =#REF! ->  | BA7: =AH7+AK7+AL7+AN7+AS7+AT7+AV7+AR7+AW7+AX7+AY7 ->  | BB7: =#REF!+#REF! ->  | BC7: =SUM(BA7,BB7,AG7) ->  | BH7: ='Баланс энергии'!M8 -> 179315.8865 | BI7: ='Баланс энергии'!M18 -> 13143.9 | BK7: =IF(BH7=0,0,BI7/BH7) -> 0.07330025386 | BL7: =BI7*BJ7 -> 0 | BM7: =#REF! ->  | BN7: =BL7-BM7 ->  | BP7: ='Баланс мощности'!H9 -> 0 | BQ7: =#REF! ->  | BR7: =#REF! ->  | BS7: =#REF! -> 
B8: 2021 | C8: =#REF! ->  | D8: =D7 ->  | E8: =#REF! ->  | F8: =#REF! ->  | G8: =#REF! ->  | H8: =#REF! ->  | I8: =#REF! ->  | J8: =IF(E7=0,0,(E8-E7)/E7*K8) ->  | K8: 0.75 | L8: =(1+C8)*(1-D8)*(1+J8) ->  | M8: =SUM(N8:O8) ->  | N8: =N7*$L8 ->  | O8: =O7*L8 ->  | P8: =P7*$L8 ->  | Q8: =R8+S8+Z8+AA8+AB8+AC8+AD8+AE8+AF8 ->  | R8: =R7*$L8 ->  | S8: =SUM(T8:Y8) ->  | T8: =T7*$L8 ->  | U8: =U7*L8 ->  | V8: =V7*L8 ->  | W8: =W7*$L8 ->  | X8: =X7*$L8 ->  | AG8: =M8+P8+Q8 ->  | AH8: =AI8+AJ8 -> 0 | AI8: ='Услуги ФСК'!J17 -> 0 | AJ8: ='Услуги ФСК'!K17 -> 0 | AK8: =#REF! ->  | AL8: =#REF! ->  | AM8: ='Аренда имущества'!F33 -> 0 | AN8: =SUM(AO8:AQ8) ->  | AO8: =#REF! ->  | AP8: =#REF! ->  | AQ8: =#REF!+#REF! ->  | AR8: =#REF! ->  | AS8: =#REF! ->  | AT8: =#REF! ->  | AU8: =AX7/0.8*0.2 ->  | AV8: =#REF! ->  | AW8: =#REF! ->  | AX8: =#REF! ->  | AY8: =#REF! ->  | AZ8: =nerr((AX8+AY8)/(BC8-AH8-AU8-AX8-AY8-AM8)) ->  | BA8: =AH8+AK8+AL8+AN8+AS8+AT8+AV8+AR8+AW8+AX8+AY8 ->  | BB8: =#REF! ->  | BC8: =SUM(BA8,BB8,AG8) ->  | BF8: =nerr((BD8+BE8)/BC8) ->  | BG8: =nerr((BC8-BC7)/BC7) ->  | BH8: ='Баланс энергии'!R8 -> 174282.335 | BI8: ='Баланс энергии'!R18 -> 12774.99633 | BK8: =IF(BH8=0,0,BI8/BH8) -> 0.07330058051 | BL8: =BI8*BJ8 -> 0 | BN8: =BL8-BM8 -> 0 | BO8: =nerr((BL8-BL7)/BL7) ->  | BP8: ='Баланс мощности'!H9 -> 0 | BQ8: =#REF! ->  | BR8: =#REF! ->  | BS8: =#REF! -> 
B9: 2022 | D9: =D8 ->  | J9: =IF(E8=0,0,(E9-E8)/E8*K9) ->  | K9: 0.75 | L9: =(1+C9)*(1-D9)*(1+J9) ->  | M9: =SUM(N9:O9) ->  | N9: =N8*$L9 ->  | O9: =O8*L9 ->  | P9: =P8*$L9 ->  | Q9: =R9+S9+Z9+AA9+AB9+AC9+AD9+AE9+AF9 ->  | R9: =R8*$L9 ->  | S9: =SUM(T9:Y9) ->  | T9: =T8*$L9 ->  | U9: =U8*L9 ->  | V9: =V8*L9 ->  | W9: =W8*$L9 ->  | AG9: =M9+P9+Q9 ->  | AH9: =AI9+AJ9 -> 0 | AN9: =SUM(AO9:AQ9) -> 0 | AZ9: =nerr((AX9+AY9)/(BC9-AH9-AU9-AX9-AY9-AM9)) ->  | BA9: =AH9+AK9+AL9+AN9+AS9+AT9+AV9+AR9+AW9+AX9+AY9 -> 0 | BC9: =SUM(BA9,BB9,AG9) ->  | BF9: =nerr((BD9+BE9)/BC9) ->  | BG9: =nerr((BC9-BC8)/BC8) ->  | BK9: =IF(BH9=0,0,BI9/BH9) -> 0 | BL9: =BI9*BJ9 -> 0 | BN9: =BL9-BM9 -> 0 | BO9: =nerr((BL9-BL8)/BL8) -> 
B10: 2023 | D10: =D9 ->  | J10: =IF(E9=0,0,(E10-E9)/E9*K10) -> 0 | K10: 0.75 | L10: =(1+C10)*(1-D10)*(1+J10) ->  | M10: =SUM(N10:O10) ->  | N10: =N9*$L10 ->  | O10: =O9*L10 ->  | P10: =P9*$L10 ->  | Q10: =R10+S10+Z10+AA10+AB10+AC10+AD10+AE10+AF10 ->  | R10: =R9*$L10 ->  | S10: =SUM(T10:Y10) ->  | T10: =T9*$L10 ->  | U10: =U9*L10 ->  | V10: =V9*L10 ->  | W10: =W9*$L10 ->  | AG10: =M10+P10+Q10 ->  | AH10: =AI10+AJ10 -> 0 | AN10: =SUM(AO10:AQ10) -> 0 | AZ10: =nerr((AX10+AY10)/(BC10-AH10-AU10-AX10-AY10-AM10)) ->  | BA10: =AH10+AK10+AL10+AN10+AS10+AT10+AV10+AR10+AW10+AX10+AY10 -> 0 | BC10: =SUM(BA10,BB10,AG10) ->  | BF10: =nerr((BD10+BE10)/BC10) ->  | BG10: =nerr((BC10-BC9)/BC9) ->  | BK10: =IF(BH10=0,0,BI10/BH10) -> 0 | BL10: =BI10*BJ10 -> 0 | BN10: =BL10-BM10 -> 0 | BO10: =nerr((BL10-BL9)/BL9) -> 
B11: 2024 | D11: =D10 ->  | J11: =IF(E10=0,0,(E11-E10)/E10*K11) -> 0 | K11: 0.75 | L11: =(1+C11)*(1-D11)*(1+J11) ->  | M11: =SUM(N11:O11) ->  | N11: =N10*$L11 ->  | O11: =O10*L11 ->  | P11: =P10*$L11 ->  | Q11: =R11+S11+Z11+AA11+AB11+AC11+AD11+AE11+AF11 ->  | R11: =R10*$L11 ->  | S11: =SUM(T11:Y11) ->  | T11: =T10*$L11 ->  | U11: =U10*L11 ->  | V11: =V10*L11 ->  | W11: =W10*$L11 ->  | AG11: =M11+P11+Q11 ->  | AH11: =AI11+AJ11 -> 0 | AN11: =SUM(AO11:AQ11) -> 0 | AZ11: =((AX11+AY11)/(BC11-AH11-AU11-AX11-AY11-AM11)) ->  | BA11: =AH11+AK11+AL11+AN11+AS11+AT11+AV11+AR11+AW11+AX11+AY11 -> 0 | BC11: =SUM(BA11,BB11,AG11) ->  | BF11: =((BD11+BE11)/BC11) ->  | BG11: =nerr((BC11-BC10)/BC10) ->  | BK11: =IF(BH11=0,0,BI11/BH11) -> 0 | BL11: =BI11*BJ11 -> 0 | BN11: =BL11-BM11 -> 0 | BO11: =nerr((BL11-BL10)/BL10) -> 

Sheet TEHSHEET (hidden)
E7: Январь
E8: Февраль
E9: Март
E10: Апрель
E11: Май
E12: Июнь
E13: Июль
E14: Август
E15: Сентябрь
E16: Октябрь
E17: Ноябрь
E18: Декабрь

Sheet Заявитель1 (hidden)
C1: Приложение 2 к Методическим указаниям, утвержденным приказом ФСТ от 11.09.2014 г. №215-э/1
A3: Расчет размера расходов, связанных с предоставлением беспроцентной рассрочки (для конкретного заявителя)
B5: (Контрагент (наименование), № договора ТП, Дата заключения договора)
A7: N п/п | B7: Квартал, на который рассчитывается размер расходов, связанных с предоставлением беспроцентной рассрочки | C7: Расходы, связанные с предоставлением беспроцентной рассрочки, тыс. руб. (с учетом НДС) | H7: Номер квартала i
C8: в отношении суммарного размера платы за технологическое присоединение в 1 квартале | D8: в отношении суммарного размера платы за технологическое присоединение во 2 квартале | E8: в отношении суммарного размера платы за технологическое присоединение в 3 квартале | F8: в отношении суммарного размера платы за технологическое присоединение в 4 квартале | G8: всего в год
A9: 1 | B9: =CONCATENATE("1 год (",$B$34,"г.):") -> 1 год (г.): | C9: =SUM(C10:C13) -> 0 | D9: =SUM(D10:D13) -> 0 | E9: =SUM(E10:E13) -> 0 | F9: =SUM(F10:F13) -> 0 | G9: =SUM(C9:F9) -> 0
A10: 1.1. | B10: 1 квартал | C10: =IF($H10>=$B$32,Заявитель1!$B$33*0.95*((12+$B$32-$H10)/12)*($B$31/4),0) -> 0 | G10: 0 | H10: 1
A11: 1.2. | B11: 2 квартал | D11: =IF($H11>=$B$32,Заявитель1!$B$33*0.95*((12+$B$32-$H11)/12)*($B$31/4),0) -> 0 | G11: 0 | H11: 2
A12: 1.3. | B12: 3 квартал | E12: =IF($H12>=$B$32,Заявитель1!$B$33*0.95*((12+$B$32-$H12)/12)*($B$31/4),0) -> 0 | G12: 0 | H12: 3
A13: 1.4. | B13: 4 квартал | F13: =IF($H13>=$B$32,Заявитель1!$B$33*0.95*((12+$B$32-$H13)/12)*($B$31/4),0) -> 0 | G13: 0 | H13: 4
A14: 2 | B14: =CONCATENATE("1 год (",$B$34+1,"г.):") -> 1 год (1г.): | C14: =SUM(C15:C18) -> 0 | D14: =SUM(D15:D18) -> 0 | E14: =SUM(E15:E18) -> 0 | F14: =SUM(F15:F18) -> 0 | G14: 0
A15: 2.1. | B15: 5 квартал | C15: =Заявитель1!$B$33*0.95*((12+$B$32-$H15)/12)*($B$31/4) -> 0 | G15: 0 | H15: 5
A16: 2.2. | B16: 6 квартал | D16: =Заявитель1!$B$33*0.95*((12+$B$32-$H16)/12)*($B$31/4) -> 0 | G16: 0 | H16: 6
A17: 2.3. | B17: 7 квартал | E17: =Заявитель1!$B$33*0.95*((12+$B$32-$H17)/12)*($B$31/4) -> 0 | G17: 0 | H17: 7
A18: 2.4. | B18: 8 квартал | F18: =Заявитель1!$B$33*0.95*((12+$B$32-$H18)/12)*($B$31/4) -> 0 | G18: 0 | H18: 8
A19: 3 | B19: =CONCATENATE("1 год (",$B$34+2,"г.):") -> 1 год (2г.): | C19: =SUM(C20:C23) -> 0 | D19: =SUM(D20:D23) -> 0 | E19: =SUM(E20:E23) -> 0 | F19: =SUM(F20:F23) -> 0 | G19: 0
A20: 3.1. | B20: 9 квартал | C20: =Заявитель1!$B$33*0.95*((12+$B$32-$H20)/12)*($B$31/4) -> 0 | G20: 0 | H20: 9
A21: 3.2. | B21: 10 квартал | D21: =Заявитель1!$B$33*0.95*((12+$B$32-$H21)/12)*($B$31/4) -> 0 | G21: 0 | H21: 10
A22: 3.3. | B22: 11 квартал | E22: =Заявитель1!$B$33*0.95*((12+$B$32-$H22)/12)*($B$31/4) -> 0 | G22: 0 | H22: 11
A23: 3.4. | B23: 12 квартал | F23: =Заявитель1!$B$33*0.95*((12+$B$32-$H23)/12)*($B$31/4) -> 0 | G23: 0 | H23: 12
A24: 4 | B24: =CONCATENATE("1 год (",$B$34+3,"г.):") -> 1 год (3г.): | C24: =SUM(C25:C27) -> 0 | D24: =SUM(D25:D27) -> 0 | E24: =SUM(E25:E27) -> 0 | F24: =SUM(F25:F27) -> 0 | G24: 0
A25: 4.1. | B25: 13 квартал | C25: =Заявитель1!$B$33*0.95*((12+$B$32-$H25)/12)*($B$31/4) -> 0 | G25: 0 | H25: 13
A26: 4.2. | B26: 14 квартал | D26: =IF((Заявитель1!$B$33*0.95*((12+$B$32-$H26)/12)*($B$31/4))<0,0,Заявитель1!$B$33*0.95*((12+$B$32-$H26)/12)*($B$31/4)) -> 0 | G26: 0 | H26: 14
A27: 4.3. | B27: 15 квартал | E27: =IF((Заявитель1!$B$33*0.95*((12+$B$32-$H27)/12)*($B$31/4))<0,0,Заявитель1!$B$33*0.95*((12+$B$32-$H27)/12)*($B$31/4)) -> 0 | G27: 0 | H27: 15
A28: 5 | B28: Итого | C28: =C9+C14+C19+C24 -> 0 | D28: =D9+D14+D19+D24 -> 0 | E28: =E9+E14+E19+E24 -> 0 | F28: =F9+F14+F19+F24 -> 0 | G28: =G9+G14+G19+G24 -> 0
A32: k
A34: Год закрытия договора
A36: Размера расходов, связанных с предоставлением беспроцентной рассрочки в 2022 году | G36: =IF(B34<2019,0,IF(B34=2019,G24,IF(B34=2020,G19,IF(B34=2021,G14)))) -> 0 | H36: тыс. руб.
A38: Размер расходов, связанных с предоставлением беспроцентной рассрочки, в i-м квартале в течение трехлетнего периода предоставления беспроцентной рассрочки рассчитывается по формуле (1):
D40: , (1)
A42: где:
A43: - суммарный размер платы за технологическое присоединение, начисляемый заявителям, которым предоставляется рассрочка, в квартале k периода регулирования (тыс. руб.);
A44: k - номер квартала по порядку в периоде регулирования, в который начисляется размер платы за технологическое присоединение (равен от 1 до 4);
A45: i - номер квартала по порядку, начиная с момента начисления размера платы за технологическое присоединение с условием предоставления беспроцентной рассрочки в квартале k, с учетом квартала, в котором произведены начисления, в течение трехлетнего периода предоставления беспроцентной рассрочки (равен от k до 12 + k - 1);
A46: - ставка рефинансирования Центрального банка Российской Федерации на дату представления сетевой организацией заявки на установление размера платы за технологическое присоединение в регулирующий орган.
A47: В случае отклонения фактического значения процентной ставки по кредитам, связанным с рассрочкой по оплате технологического присоединения, от ставки рефинансирования Центрального банка Российской Федерации, при расчете фактического размера расходов, связанных с предоставлением беспроцентной рассрочки, применяется величина процентной ставки в соответствии с пунктом 87 Основ ценообразования.
A49: Примечание:
A50: 1) Периодом предоставления беспроцентной рассрочки считается 3 года.
A51: 2) Размер расходов, связанных с предоставлением беспроцентной рассрочки, в каждый квартал периода регулирования в течение трехлетнего периода предоставления беспроцентной рассрочки в отношении планируемого к получению (фактически полученного) от заявителей суммарного размера платы за технологическое присоединение, определяется в соответствии с формулой (1) Методических указаний по определению выпадающих доходов, связанных с осуществлением технологического присоединения к электрическим сетям.
A52: 3) При расчете планируемых значений показателей при заполнении таблиц 1 и 2 применяется планируемая к получению величина суммарного размера платы за технологическое присоединение, подлежащего беспроцентной рассрочке.
A53: 4) При расчете фактических значений показателей при заполнении таблиц 1 и 2 применяется суммарная плата за технологическое присоединение, начисленная с беспроцентной рассрочкой в соответствии с заключенными договорами об осуществлении технологического присоединения к электрическим сетям.

Sheet Заявитель2 (hidden)
C1: Приложение 2 к Методическим указаниям, утвержденным приказом ФСТ от 11.09.2014 г. №215-э/1
A3: Расчет размера расходов, связанных с предоставлением беспроцентной рассрочки (для конкретного заявителя)
B5: (Контрагент (наименование), № договора ТП, Дата заключения договора)
A7: N п/п | B7: Квартал, на который рассчитывается размер расходов, связанных с предоставлением беспроцентной рассрочки | C7: Расходы, связанные с предоставлением беспроцентной рассрочки, тыс. руб. (с учетом НДС) | H7: Номер квартала i
C8: в отношении суммарного размера платы за технологическое присоединение в 1 квартале | D8: в отношении суммарного размера платы за технологическое присоединение во 2 квартале | E8: в отношении суммарного размера платы за технологическое присоединение в 3 квартале | F8: в отношении суммарного размера платы за технологическое присоединение в 4 квартале | G8: всего в год
A9: 1 | B9: =CONCATENATE("1 год (",$B$34,"г.):") -> 1 год (г.): | C9: =SUM(C10:C13) -> 0 | D9: =SUM(D10:D13) -> 0 | E9: =SUM(E10:E13) -> 0 | F9: =SUM(F10:F13) -> 0 | G9: =SUM(C9:F9) -> 0
A10: 1.1. | B10: 1 квартал | C10: =IF($H10>=$B$32,Заявитель2!$B$33*0.95*((12+$B$32-$H10)/12)*($B$31/4),0) -> 0 | G10: 0 | H10: 1
A11: 1.2. | B11: 2 квартал | D11: =IF($H11>=$B$32,Заявитель2!$B$33*0.95*((12+$B$32-$H11)/12)*($B$31/4),0) -> 0 | G11: 0 | H11: 2
A12: 1.3. | B12: 3 квартал | E12: =IF($H12>=$B$32,Заявитель2!$B$33*0.95*((12+$B$32-$H12)/12)*($B$31/4),0) -> 0 | G12: 0 | H12: 3
A13: 1.4. | B13: 4 квартал | F13: =IF($H13>=$B$32,Заявитель2!$B$33*0.95*((12+$B$32-$H13)/12)*($B$31/4),0) -> 0 | G13: 0 | H13: 4
A14: 2 | B14: =CONCATENATE("1 год (",$B$34+1,"г.):") -> 1 год (1г.): | C14: =SUM(C15:C18) -> 0 | D14: =SUM(D15:D18) -> 0 | E14: =SUM(E15:E18) -> 0 | F14: =SUM(F15:F18) -> 0 | G14: 0
A15: 2.1. | B15: 5 квартал | C15: =Заявитель2!$B$33*0.95*((12+$B$32-$H15)/12)*($B$31/4) -> 0 | G15: 0 | H15: 5
A16: 2.2. | B16: 6 квартал | D16: =Заявитель2!$B$33*0.95*((12+$B$32-$H16)/12)*($B$31/4) -> 0 | G16: 0 | H16: 6
A17: 2.3. | B17: 7 квартал | E17: =Заявитель2!$B$33*0.95*((12+$B$32-$H17)/12)*($B$31/4) -> 0 | G17: 0 | H17: 7
A18: 2.4. | B18: 8 квартал | F18: =Заявитель2!$B$33*0.95*((12+$B$32-$H18)/12)*($B$31/4) -> 0 | G18: 0 | H18: 8
A19: 3 | B19: =CONCATENATE("1 год (",$B$34+2,"г.):") -> 1 год (2г.): | C19: =SUM(C20:C23) -> 0 | D19: =SUM(D20:D23) -> 0 | E19: =SUM(E20:E23) -> 0 | F19: =SUM(F20:F23) -> 0 | G19: 0
A20: 3.1. | B20: 9 квартал | C20: =Заявитель2!$B$33*0.95*((12+$B$32-$H20)/12)*($B$31/4) -> 0 | G20: 0 | H20: 9
A21: 3.2. | B21: 10 квартал | D21: =Заявитель2!$B$33*0.95*((12+$B$32-$H21)/12)*($B$31/4) -> 0 | G21: 0 | H21: 10
A22: 3.3. | B22: 11 квартал | E22: =Заявитель2!$B$33*0.95*((12+$B$32-$H22)/12)*($B$31/4) -> 0 | G22: 0 | H22: 11
A23: 3.4. | B23: 12 квартал | F23: =Заявитель2!$B$33*0.95*((12+$B$32-$H23)/12)*($B$31/4) -> 0 | G23: 0 | H23: 12
A24: 4 | B24: =CONCATENATE("1 год (",$B$34+3,"г.):") -> 1 год (3г.): | C24: =SUM(C25:C27) -> 0 | D24: =SUM(D25:D27) -> 0 | E24: =SUM(E25:E27) -> 0 | F24: =SUM(F25:F27) -> 0 | G24: 0
A25: 4.1. | B25: 13 квартал | C25: =Заявитель2!$B$33*0.95*((12+$B$32-$H25)/12)*($B$31/4) -> 0 | G25: 0 | H25: 13
A26: 4.2. | B26: 14 квартал | D26: =IF((Заявитель2!$B$33*0.95*((12+$B$32-$H26)/12)*($B$31/4))<0,0,Заявитель2!$B$33*0.95*((12+$B$32-$H26)/12)*($B$31/4)) -> 0 | G26: 0 | H26: 14
A27: 4.3. | B27: 15 квартал | E27: =IF((Заявитель2!$B$33*0.95*((12+$B$32-$H27)/12)*($B$31/4))<0,0,Заявитель2!$B$33*0.95*((12+$B$32-$H27)/12)*($B$31/4)) -> 0 | G27: 0 | H27: 15
A28: 5 | B28: Итого | C28: =C9+C14+C19+C24 -> 0 | D28: =D9+D14+D19+D24 -> 0 | E28: =E9+E14+E19+E24 -> 0 | F28: =F9+F14+F19+F24 -> 0 | G28: =G9+G14+G19+G24 -> 0
A32: k
A34: Год закрытия договора
A36: Размера расходов, связанных с предоставлением беспроцентной рассрочки в 2022 году | G36: =IF(B34<2019,0,IF(B34=2019,G24,IF(B34=2020,G19,IF(B34=2021,G14)))) -> 0 | H36: тыс. руб.
A38: Размер расходов, связанных с предоставлением беспроцентной рассрочки, в i-м квартале в течение трехлетнего периода предоставления беспроцентной рассрочки рассчитывается по формуле (1):
D40: , (1)
A42: где:
A43: - суммарный размер платы за технологическое присоединение, начисляемый заявителям, которым предоставляется рассрочка, в квартале k периода регулирования (тыс. руб.);
A44: k - номер квартала по порядку в периоде регулирования, в который начисляется размер платы за технологическое присоединение (равен от 1 до 4);
A45: i - номер квартала по порядку, начиная с момента начисления размера платы за технологическое присоединение с условием предоставления беспроцентной рассрочки в квартале k, с учетом квартала, в котором произведены начисления, в течение трехлетнего периода предоставления беспроцентной рассрочки (равен от k до 12 + k - 1);
A46: - ставка рефинансирования Центрального банка Российской Федерации на дату представления сетевой организацией заявки на установление размера платы за технологическое присоединение в регулирующий орган.
A47: В случае отклонения фактического значения процентной ставки по кредитам, связанным с рассрочкой по оплате технологического присоединения, от ставки рефинансирования Центрального банка Российской Федерации, при расчете фактического размера расходов, связанных с предоставлением беспроцентной рассрочки, применяется величина процентной ставки в соответствии с пунктом 87 Основ ценообразования.
A49: Примечание:
A50: 1) Периодом предоставления беспроцентной рассрочки считается 3 года.
A51: 2) Размер расходов, связанных с предоставлением беспроцентной рассрочки, в каждый квартал периода регулирования в течение трехлетнего периода предоставления беспроцентной рассрочки в отношении планируемого к получению (фактически полученного) от заявителей суммарного размера платы за технологическое присоединение, определяется в соответствии с формулой (1) Методических указаний по определению выпадающих доходов, связанных с осуществлением технологического присоединения к электрическим сетям.
A52: 3) При расчете планируемых значений показателей при заполнении таблиц 1 и 2 применяется планируемая к получению величина суммарного размера платы за технологическое присоединение, подлежащего беспроцентной рассрочке.
A53: 4) При расчете фактических значений показателей при заполнении таблиц 1 и 2 применяется суммарная плата за технологическое присоединение, начисленная с беспроцентной рассрочкой в соответствии с заключенными договорами об осуществлении технологического присоединения к электрическим сетям.

Sheet Заявитель3 (hidden)
C1: Приложение 2 к Методическим указаниям, утвержденным приказом ФСТ от 11.09.2014 г. №215-э/1
A3: Расчет размера расходов, связанных с предоставлением беспроцентной рассрочки (для конкретного заявителя)
B5: (Контрагент (наименование), № договора ТП, Дата заключения договора)
A7: N п/п | B7: Квартал, на который рассчитывается размер расходов, связанных с предоставлением беспроцентной рассрочки | C7: Расходы, связанные с предоставлением беспроцентной рассрочки, тыс. руб. (с учетом НДС) | H7: Номер квартала i
C8: в отношении суммарного размера платы за технологическое присоединение в 1 квартале | D8: в отношении суммарного размера платы за технологическое присоединение во 2 квартале | E8: в отношении суммарного размера платы за технологическое присоединение в 3 квартале | F8: в отношении суммарного размера платы за технологическое присоединение в 4 квартале | G8: всего в год
A9: 1 | B9: =CONCATENATE("1 год (",$B$34,"г.):") -> 1 год (г.): | C9: =SUM(C10:C13) -> 0 | D9: =SUM(D10:D13) -> 0 | E9: =SUM(E10:E13) -> 0 | F9: =SUM(F10:F13) -> 0 | G9: =SUM(C9:F9) -> 0
A10: 1.1. | B10: 1 квартал | C10: =IF($H10>=$B$32,Заявитель3!$B$33*0.95*((12+$B$32-$H10)/12)*($B$31/4),0) -> 0 | G10: 0 | H10: 1
A11: 1.2. | B11: 2 квартал | D11: =IF($H11>=$B$32,Заявитель3!$B$33*0.95*((12+$B$32-$H11)/12)*($B$31/4),0) -> 0 | G11: 0 | H11: 2
A12: 1.3. | B12: 3 квартал | E12: =IF($H12>=$B$32,Заявитель3!$B$33*0.95*((12+$B$32-$H12)/12)*($B$31/4),0) -> 0 | G12: 0 | H12: 3
A13: 1.4. | B13: 4 квартал | F13: =IF($H13>=$B$32,Заявитель3!$B$33*0.95*((12+$B$32-$H13)/12)*($B$31/4),0) -> 0 | G13: 0 | H13: 4
A14: 2 | B14: =CONCATENATE("1 год (",$B$34+1,"г.):") -> 1 год (1г.): | C14: =SUM(C15:C18) -> 0 | D14: =SUM(D15:D18) -> 0 | E14: =SUM(E15:E18) -> 0 | F14: =SUM(F15:F18) -> 0 | G14: 0
A15: 2.1. | B15: 5 квартал | C15: =Заявитель3!$B$33*0.95*((12+$B$32-$H15)/12)*($B$31/4) -> 0 | G15: 0 | H15: 5
A16: 2.2. | B16: 6 квартал | D16: =Заявитель3!$B$33*0.95*((12+$B$32-$H16)/12)*($B$31/4) -> 0 | G16: 0 | H16: 6
A17: 2.3. | B17: 7 квартал | E17: =Заявитель3!$B$33*0.95*((12+$B$32-$H17)/12)*($B$31/4) -> 0 | G17: 0 | H17: 7
A18: 2.4. | B18: 8 квартал | F18: =Заявитель3!$B$33*0.95*((12+$B$32-$H18)/12)*($B$31/4) -> 0 | G18: 0 | H18: 8
A19: 3 | B19: =CONCATENATE("1 год (",$B$34+2,"г.):") -> 1 год (2г.): | C19: =SUM(C20:C23) -> 0 | D19: =SUM(D20:D23) -> 0 | E19: =SUM(E20:E23) -> 0 | F19: =SUM(F20:F23) -> 0 | G19: 0
A20: 3.1. | B20: 9 квартал | C20: =Заявитель3!$B$33*0.95*((12+$B$32-$H20)/12)*($B$31/4) -> 0 | G20: 0 | H20: 9
A21: 3.2. | B21: 10 квартал | D21: =Заявитель3!$B$33*0.95*((12+$B$32-$H21)/12)*($B$31/4) -> 0 | G21: 0 | H21: 10
A22: 3.3. | B22: 11 квартал | E22: =Заявитель3!$B$33*0.95*((12+$B$32-$H22)/12)*($B$31/4) -> 0 | G22: 0 | H22: 11
A23: 3.4. | B23: 12 квартал | F23: =Заявитель3!$B$33*0.95*((12+$B$32-$H23)/12)*($B$31/4) -> 0 | G23: 0 | H23: 12
A24: 4 | B24: =CONCATENATE("1 год (",$B$34+3,"г.):") -> 1 год (3г.): | C24: =SUM(C25:C27) -> 0 | D24: =SUM(D25:D27) -> 0 | E24: =SUM(E25:E27) -> 0 | F24: =SUM(F25:F27) -> 0 | G24: 0
A25: 4.1. | B25: 13 квартал | C25: =Заявитель3!$B$33*0.95*((12+$B$32-$H25)/12)*($B$31/4) -> 0 | G25: 0 | H25: 13
A26: 4.2. | B26: 14 квартал | D26: =IF((Заявитель3!$B$33*0.95*((12+$B$32-$H26)/12)*($B$31/4))<0,0,Заявитель3!$B$33*0.95*((12+$B$32-$H26)/12)*($B$31/4)) -> 0 | G26: 0 | H26: 14
A27: 4.3. | B27: 15 квартал | E27: =IF((Заявитель3!$B$33*0.95*((12+$B$32-$H27)/12)*($B$31/4))<0,0,Заявитель3!$B$33*0.95*((12+$B$32-$H27)/12)*($B$31/4)) -> 0 | G27: 0 | H27: 15
A28: 5 | B28: Итого | C28: =C9+C14+C19+C24 -> 0 | D28: =D9+D14+D19+D24 -> 0 | E28: =E9+E14+E19+E24 -> 0 | F28: =F9+F14+F19+F24 -> 0 | G28: =G9+G14+G19+G24 -> 0
A32: k
A34: Год закрытия договора
A36: Размера расходов, связанных с предоставлением беспроцентной рассрочки в 2022 году | G36: =IF(B34<2019,0,IF(B34=2019,G24,IF(B34=2020,G19,IF(B34=2021,G14)))) -> 0 | H36: тыс. руб.
A38: Размер расходов, связанных с предоставлением беспроцентной рассрочки, в i-м квартале в течение трехлетнего периода предоставления беспроцентной рассрочки рассчитывается по формуле (1):
D40: , (1)
A42: где:
A43: - суммарный размер платы за технологическое присоединение, начисляемый заявителям, которым предоставляется рассрочка, в квартале k периода регулирования (тыс. руб.);
A44: k - номер квартала по порядку в периоде регулирования, в который начисляется размер платы за технологическое присоединение (равен от 1 до 4);
A45: i - номер квартала по порядку, начиная с момента начисления размера платы за технологическое присоединение с условием предоставления беспроцентной рассрочки в квартале k, с учетом квартала, в котором произведены начисления, в течение трехлетнего периода предоставления беспроцентной рассрочки (равен от k до 12 + k - 1);
A46: - ставка рефинансирования Центрального банка Российской Федерации на дату представления сетевой организацией заявки на установление размера платы за технологическое присоединение в регулирующий орган.
A47: В случае отклонения фактического значения процентной ставки по кредитам, связанным с рассрочкой по оплате технологического присоединения, от ставки рефинансирования Центрального банка Российской Федерации, при расчете фактического размера расходов, связанных с предоставлением беспроцентной рассрочки, применяется величина процентной ставки в соответствии с пунктом 87 Основ ценообразования.
A49: Примечание:
A50: 1) Периодом предоставления беспроцентной рассрочки считается 3 года.
A51: 2) Размер расходов, связанных с предоставлением беспроцентной рассрочки, в каждый квартал периода регулирования в течение трехлетнего периода предоставления беспроцентной рассрочки в отношении планируемого к получению (фактически полученного) от заявителей суммарного размера платы за технологическое присоединение, определяется в соответствии с формулой (1) Методических указаний по определению выпадающих доходов, связанных с осуществлением технологического присоединения к электрическим сетям.
A52: 3) При расчете планируемых значений показателей при заполнении таблиц 1 и 2 применяется планируемая к получению величина суммарного размера платы за технологическое присоединение, подлежащего беспроцентной рассрочке.
A53: 4) При расчете фактических значений показателей при заполнении таблиц 1 и 2 применяется суммарная плата за технологическое присоединение, начисленная с беспроцентной рассрочкой в соответствии с заключенными договорами об осуществлении технологического присоединения к электрическим сетям.

Sheet Заявитель4 (hidden)
C1: Приложение 2 к Методическим указаниям, утвержденным приказом ФСТ от 11.09.2014 г. №215-э/1
A3: Расчет размера расходов, связанных с предоставлением беспроцентной рассрочки (для конкретного заявителя)
B5: (Контрагент (наименование), № договора ТП, Дата заключения договора)
A7: N п/п | B7: Квартал, на который рассчитывается размер расходов, связанных с предоставлением беспроцентной рассрочки | C7: Расходы, связанные с предоставлением беспроцентной рассрочки, тыс. руб. (с учетом НДС) | H7: Номер квартала i
C8: в отношении суммарного размера платы за технологическое присоединение в 1 квартале | D8: в отношении суммарного размера платы за технологическое присоединение во 2 квартале | E8: в отношении суммарного размера платы за технологическое присоединение в 3 квартале | F8: в отношении суммарного размера платы за технологическое присоединение в 4 квартале | G8: всего в год
A9: 1 | B9: =CONCATENATE("1 год (",$B$34,"г.):") -> 1 год (г.): | C9: =SUM(C10:C13) -> 0 | D9: =SUM(D10:D13) -> 0 | E9: =SUM(E10:E13) -> 0 | F9: =SUM(F10:F13) -> 0 | G9: =SUM(C9:F9) -> 0
A10: 1.1. | B10: 1 квартал | C10: =IF($H10>=$B$32,Заявитель4!$B$33*0.95*((12+$B$32-$H10)/12)*($B$31/4),0) -> 0 | G10: 0 | H10: 1
A11: 1.2. | B11: 2 квартал | D11: =IF($H11>=$B$32,Заявитель4!$B$33*0.95*((12+$B$32-$H11)/12)*($B$31/4),0) -> 0 | G11: 0 | H11: 2
A12: 1.3. | B12: 3 квартал | E12: =IF($H12>=$B$32,Заявитель4!$B$33*0.95*((12+$B$32-$H12)/12)*($B$31/4),0) -> 0 | G12: 0 | H12: 3
A13: 1.4. | B13: 4 квартал | F13: =IF($H13>=$B$32,Заявитель4!$B$33*0.95*((12+$B$32-$H13)/12)*($B$31/4),0) -> 0 | G13: 0 | H13: 4
A14: 2 | B14: =CONCATENATE("1 год (",$B$34+1,"г.):") -> 1 год (1г.): | C14: =SUM(C15:C18) -> 0 | D14: =SUM(D15:D18) -> 0 | E14: =SUM(E15:E18) -> 0 | F14: =SUM(F15:F18) -> 0 | G14: 0
A15: 2.1. | B15: 5 квартал | C15: =Заявитель4!$B$33*0.95*((12+$B$32-$H15)/12)*($B$31/4) -> 0 | G15: 0 | H15: 5
A16: 2.2. | B16: 6 квартал | D16: =Заявитель4!$B$33*0.95*((12+$B$32-$H16)/12)*($B$31/4) -> 0 | G16: 0 | H16: 6
A17: 2.3. | B17: 7 квартал | E17: =Заявитель4!$B$33*0.95*((12+$B$32-$H17)/12)*($B$31/4) -> 0 | G17: 0 | H17: 7
A18: 2.4. | B18: 8 квартал | F18: =Заявитель4!$B$33*0.95*((12+$B$32-$H18)/12)*($B$31/4) -> 0 | G18: 0 | H18: 8
A19: 3 | B19: =CONCATENATE("1 год (",$B$34+2,"г.):") -> 1 год (2г.): | C19: =SUM(C20:C23) -> 0 | D19: =SUM(D20:D23) -> 0 | E19: =SUM(E20:E23) -> 0 | F19: =SUM(F20:F23) -> 0 | G19: 0
A20: 3.1. | B20: 9 квартал | C20: =Заявитель4!$B$33*0.95*((12+$B$32-$H20)/12)*($B$31/4) -> 0 | G20: 0 | H20: 9
A21: 3.2. | B21: 10 квартал | D21: =Заявитель4!$B$33*0.95*((12+$B$32-$H21)/12)*($B$31/4) -> 0 | G21: 0 | H21: 10
A22: 3.3. | B22: 11 квартал | E22: =Заявитель4!$B$33*0.95*((12+$B$32-$H22)/12)*($B$31/4) -> 0 | G22: 0 | H22: 11
A23: 3.4. | B23: 12 квартал | F23: =Заявитель4!$B$33*0.95*((12+$B$32-$H23)/12)*($B$31/4) -> 0 | G23: 0 | H23: 12
A24: 4 | B24: =CONCATENATE("1 год (",$B$34+3,"г.):") -> 1 год (3г.): | C24: =SUM(C25:C27) -> 0 | D24: =SUM(D25:D27) -> 0 | E24: =SUM(E25:E27) -> 0 | F24: =SUM(F25:F27) -> 0 | G24: 0
A25: 4.1. | B25: 13 квартал | C25: =Заявитель4!$B$33*0.95*((12+$B$32-$H25)/12)*($B$31/4) -> 0 | G25: 0 | H25: 13
A26: 4.2. | B26: 14 квартал | D26: =IF((Заявитель4!$B$33*0.95*((12+$B$32-$H26)/12)*($B$31/4))<0,0,Заявитель4!$B$33*0.95*((12+$B$32-$H26)/12)*($B$31/4)) -> 0 | G26: 0 | H26: 14
A27: 4.3. | B27: 15 квартал | E27: =IF((Заявитель4!$B$33*0.95*((12+$B$32-$H27)/12)*($B$31/4))<0,0,Заявитель4!$B$33*0.95*((12+$B$32-$H27)/12)*($B$31/4)) -> 0 | G27: 0 | H27: 15
A28: 5 | B28: Итого | C28: =C9+C14+C19+C24 -> 0 | D28: =D9+D14+D19+D24 -> 0 | E28: =E9+E14+E19+E24 -> 0 | F28: =F9+F14+F19+F24 -> 0 | G28: =G9+G14+G19+G24 -> 0
A32: k
A34: Год закрытия договора
A36: Размера расходов, связанных с предоставлением беспроцентной рассрочки в 2022 году | G36: =IF(B34<2019,0,IF(B34=2019,G24,IF(B34=2020,G19,IF(B34=2021,G14)))) -> 0 | H36: тыс. руб.
A38: Размер расходов, связанных с предоставлением беспроцентной рассрочки, в i-м квартале в течение трехлетнего периода предоставления беспроцентной рассрочки рассчитывается по формуле (1):
D40: , (1)
A42: где:
A43: - суммарный размер платы за технологическое присоединение, начисляемый заявителям, которым предоставляется рассрочка, в квартале k периода регулирования (тыс. руб.);
A44: k - номер квартала по порядку в периоде регулирования, в который начисляется размер платы за технологическое присоединение (равен от 1 до 4);
A45: i - номер квартала по порядку, начиная с момента начисления размера платы за технологическое присоединение с условием предоставления беспроцентной рассрочки в квартале k, с учетом квартала, в котором произведены начисления, в течение трехлетнего периода предоставления беспроцентной рассрочки (равен от k до 12 + k - 1);
A46: - ставка рефинансирования Центрального банка Российской Федерации на дату представления сетевой организацией заявки на установление размера платы за технологическое присоединение в регулирующий орган.
A47: В случае отклонения фактического значения процентной ставки по кредитам, связанным с рассрочкой по оплате технологического присоединения, от ставки рефинансирования Центрального банка Российской Федерации, при расчете фактического размера расходов, связанных с предоставлением беспроцентной рассрочки, применяется величина процентной ставки в соответствии с пунктом 87 Основ ценообразования.
A49: Примечание:
A50: 1) Периодом предоставления беспроцентной рассрочки считается 3 года.
A51: 2) Размер расходов, связанных с предоставлением беспроцентной рассрочки, в каждый квартал периода регулирования в течение трехлетнего периода предоставления беспроцентной рассрочки в отношении планируемого к получению (фактически полученного) от заявителей суммарного размера платы за технологическое присоединение, определяется в соответствии с формулой (1) Методических указаний по определению выпадающих доходов, связанных с осуществлением технологического присоединения к электрическим сетям.
A52: 3) При расчете планируемых значений показателей при заполнении таблиц 1 и 2 применяется планируемая к получению величина суммарного размера платы за технологическое присоединение, подлежащего беспроцентной рассрочке.
A53: 4) При расчете фактических значений показателей при заполнении таблиц 1 и 2 применяется суммарная плата за технологическое присоединение, начисленная с беспроцентной рассрочкой в соответствии с заключенными договорами об осуществлении технологического присоединения к электрическим сетям.
